{"text_format":"1","workbook":"xlsx","n_sheets":66,"sheets":["3","4","5","6","7","8","9","10","11","12","13","14","15","16","17","18","19","20","21","22","23","24","25","26","27","28","29","30","31","32","33","34","35","36","37","38","39","40","41","42","43","44","45","46","47","48","49","50","51","52","53","54","55","56","57","58","59","60","61","62","63","64","65","66","67","68"],"not_rendered":{"charts":0,"images":0,"macros":1,"external_links":0,"defined_names":66,"comments":0,"pivot_tables":0},"unopened":[],"bounds":{"document_bytes":16777216,"sheet_cells":100000,"rows_first":2000,"rows_last":500,"rows_between":2000,"halvings":0,"cell_chars":16384,"cell_head_chars":4096},"cells_cut":0,"cells_raw":0,"read":"whole","date_system":"1900"}

{"sheet":"3","index":0,"n_rows":26,"n_cols":7,"rows_kept":26,"cut":false,"hidden":false,"merged":[[16,0,16,6],[19,0,19,6],[20,0,20,6],[21,0,21,6],[25,0,25,6],[17,0,17,6],[18,0,18,6],[15,0,15,6],[0,0,0,6],[1,0,1,6],[2,0,2,6],[13,0,13,6],[14,0,14,6]]}
["Table A1. Number of Pension Plans, Total Participants, Active Participants,"]
["Assets, Contributions, and Benefits"]
["by type of plan, 2018"]
[]
["Type of Plan 1","Number of Plans ","Total Participants (thousands) ","Active Participants (thousands) 2","Total Assets (millions) 3","Total Contributions (millions) 4","Total Benefits (millions) 5"]
["Total",721876,139814,96449,9233060,630308,794659]
["Defined Benefit",46869,33967,13073,2968452,98448,243968]
["Cash Balance",20281,10321,4119,1014000,25200,84271]
["Other Defined Benefit",26588,23646,8954,1954452,73248,159697]
["Defined Contribution",675007,105846,83376,6264608,531859,550691]
["401(k) Type",588499,87788,70335,5229194,464578,473790]
["403(b) ",20768,9551,6896,516698,39624,36320]
["Other Defined Contribution ",65740,8507,6145,518715,27658,40581]
[]
["NOTES: Excludes \"one-participant plans.\""]
["Some totals do not equal the sum of the components due to rounding. "]
["Pension plan statistics are weighted to estimate the impact of delinquent filers. This may result in non-integer plan counts and associated statistics in the underlying data. For more information on the weighted estimates, refer to the “Weights” section in the User Guide of the Form 5500 Private Pension Research File."]
["1 An annuity arrangement under Code section 403(b)(1) and custodial account arrangement under Code section 403(b)(7) are grouped under the category of 403(b). These numbers may not represent all 403(b) plans because those 403(b) plans that are not established or maintained by an employer as described in DOL Regulation 29 C.F.R § 2510.3-2(f) are exempt from filing a Form 5500/5500-SF. These data include only 403(b) plans that file the Form 5500 or Form 5500-SF. Additional information on 403(b) filing requirements can be found in Field Assistance Bulletins 2009-02 and 2010-01. Approximately 0.05% of individual account plans indicate both 401(k) and 403(b) plan characteristics. For purposes of this report, they are classified as 401(k) type plans."]
["2 The definition of active participants includes individuals who are eligible to elect to have the employer make payments to a 401(k) type plan (even if individuals are not contributing) and nonvested individuals who are earning or retaining credited service under the plan. For more information, please see the Instructions for Form 5500 at https://www.dol.gov/agencies/ebsa/employers-and-advisers/plan-administration-and- compliance/reporting-and-filing/form-5500."]
["3 Total asset amounts shown do not include the value of allocated insurance contracts described in 29 C.F.R § 2520.104-44."]
["4 For the purposes of this report, includes both employer and employee contributions."]
["5 Amounts shown include both benefits paid directly to participants and beneficiaries from trust funds and premium payments made by plans to insurance carriers. Amounts exclude benefits paid directly by insurance carriers."]
["*/ Fewer than 500 participants."]
["**/ Less than $500,000."]
["- Missing or zero."]
["SOURCE: Form 5500 filings for plan years ending in 2018."]

{"sheet":"4","index":1,"n_rows":25,"n_cols":7,"rows_kept":25,"cut":false,"hidden":false,"merged":[[15,0,15,6],[18,0,18,6],[19,0,19,6],[20,0,20,6],[24,0,24,6],[16,0,16,6],[17,0,17,6],[14,0,14,6],[0,0,0,6],[1,0,1,6],[2,0,2,6],[13,0,13,6]]}
["Table A1(a). Number of Pension Plans, Total Participants, Active Participants, Assets,"]
["Contributions, and Benefits for Plans with 100 or More Participants"]
["by type of plan, 2018"]
[]
["Type of Plan 1","Number of Plans ","Total Participants (thousands) ","Active Participants (thousands) 2","Total Assets (millions) 3","Total Contributions (millions) 4","Total Benefits (millions) 5"]
["Total",92480,127092,86287,8377770,547665,676724]
["Defined Benefit",7727,33486,12734,2913849,90259,227463]
["Cash Balance",1325,10087,3919,993691,20675,78240]
["Other Defined Benefit",6402,23398,8815,1920159,69584,149223]
["Defined Contribution",84753,93607,73553,5463921,457406,449261]
["401(k) Type",71267,76776,61427,4542226,396372,388522]
["403(b) ",7656,9133,6608,500737,37823,33484]
["Other Defined Contribution ",5830,7698,5518,420957,23210,27255]
[]
["NOTES: Some totals do not equal the sum of the components due to rounding. "]
["Pension plan statistics are weighted to estimate the impact of delinquent filers. This may result in non-integer plan counts and associated statistics in the underlying data. For more information on the weighted estimates, refer to the “Weights” section in the User Guide of the Form 5500 Private Pension Research File."]
["1 An annuity arrangement under Code section 403(b)(1) and custodial account arrangement under Code section 403(b)(7) are grouped under the category of 403(b). These numbers may not represent all 403(b) plans because those 403(b) plans that are not established or maintained by an employer as described in DOL Regulation 29 C.F.R § 2510.3-2(f) are exempt from filing a Form 5500/5500-SF. These data include only 403(b) plans that file the Form 5500 or Form 5500-SF. Additional information on 403(b) filing requirements can be found in Field Assistance Bulletins 2009-02 and 2010-01. Approximately 0.05% of individual account plans indicate both 401(k) and 403(b) plan characteristics. For purposes of this report, they are classified as 401(k) type plans."]
["2 The definition of active participants includes individuals who are eligible to elect to have the employer make payments to a 401(k) type plan (even if individuals are not contributing) and nonvested individuals who are earning or retaining credited service under the plan. For more information, please see the Instructions for Form 5500 at https://www.dol.gov/agencies/ebsa/employers-and-advisers/plan-administration-and- compliance/reporting-and-filing/form-5500."]
["3 Total asset amounts shown do not include the value of allocated insurance contracts described in 29 C.F.R § 2520.104-44."]
["4 For the purposes of this report, includes both employer and employee contributions."]
["5 Amounts shown include both benefits paid directly to participants and beneficiaries from trust funds and premium payments made by plans to insurance carriers. Amounts exclude benefits paid directly by insurance carriers."]
["*/ Fewer than 500 participants."]
["**/ Less than $500,000."]
["- Missing or zero."]
["SOURCE: Form 5500 filings for plan years ending in 2018."]

{"sheet":"5","index":2,"n_rows":26,"n_cols":7,"rows_kept":26,"cut":false,"hidden":false,"merged":[[16,0,16,6],[19,0,19,6],[20,0,20,6],[21,0,21,6],[25,0,25,6],[17,0,17,6],[18,0,18,6],[15,0,15,6],[14,0,14,6],[0,0,0,6],[1,0,1,6],[2,0,2,6],[13,0,13,6]]}
["Table A1(b). Number of Pension Plans, Total Participants, Active Participants, Assets,"]
["Contributions, and Benefits for Plans with Fewer than 100 Participants"]
["by type of plan, 2018"]
[]
["Type of Plan 1","Number of Plans ","Total Participants (thousands) ","Active Participants (thousands) 2","Total Assets (millions) 3","Total Contributions (millions) 4","Total Benefits (millions) 5"]
["Total",629396,12721,10163,855290,82643,117935]
["Defined Benefit",39143,481,339,54603,8189,16505]
["Cash Balance",18957,234,200,20309,4525,6031]
["Other Defined Benefit",20186,247,140,34294,3664,10474]
["Defined Contribution",590254,12240,9823,800687,74454,101430]
["401(k) Type",517232,11012,8908,686968,68205,85268]
["403(b) ",13112,418,288,15961,1801,2836]
["Other Defined Contribution ",59910,810,627,97758,4448,13326]
[]
["NOTES: Excludes \"one-participant plans.\""]
["Some totals do not equal the sum of the components due to rounding. "]
["Pension plan statistics are weighted to estimate the impact of delinquent filers. This may result in non-integer plan counts and associated statistics in the underlying data. For more information on the weighted estimates, refer to the “Weights” section in the User Guide of the Form 5500 Private Pension Research File."]
["1 An annuity arrangement under Code section 403(b)(1) and custodial account arrangement under Code section 403(b)(7) are grouped under the category of 403(b). These numbers may not represent all 403(b) plans because those 403(b) plans that are not established or maintained by an employer as described in DOL Regulation 29 C.F.R § 2510.3-2(f) are exempt from filing a Form 5500/5500-SF. These data include only 403(b) plans that file the Form 5500 or Form 5500-SF. Additional information on 403(b) filing requirements can be found in Field Assistance Bulletins 2009-02 and 2010-01. Approximately 0.05% of individual account plans indicate both 401(k) and 403(b) plan characteristics. For purposes of this report, they are classified as 401(k) type plans."]
["2 The definition of active participants includes individuals who are eligible to elect to have the employer make payments to a 401(k) type plan (even if individuals are not contributing) and nonvested individuals who are earning or retaining credited service under the plan. For more information, please see the Instructions for Form 5500 at https://www.dol.gov/agencies/ebsa/employers-and-advisers/plan-administration-and- compliance/reporting-and-filing/form-5500."]
["3 Total asset amounts shown do not include the value of allocated insurance contracts described in 29 C.F.R § 2520.104-44."]
["4 For the purposes of this report, includes both employer and employee contributions."]
["5 Amounts shown include both benefits paid directly to participants and beneficiaries from trust funds and premium payments made by plans to insurance carriers. Amounts exclude benefits paid directly by insurance carriers."]
["*/ Fewer than 500 participants."]
["**/ Less than $500,000."]
["- Missing or zero."]
["SOURCE: Form 5500 filings for plan years ending in 2018."]

{"sheet":"6","index":3,"n_rows":27,"n_cols":13,"rows_kept":27,"cut":false,"hidden":false,"merged":[[0,0,0,12],[4,0,5,0],[4,1,4,3],[4,4,4,6],[4,10,4,12],[1,0,1,12],[2,0,2,12],[4,7,4,9],[22,0,22,12],[26,0,26,12],[14,0,14,12],[17,0,17,12],[13,0,13,12],[18,0,18,12],[19,0,19,12],[21,0,21,12],[20,0,20,12],[15,0,15,12],[16,0,16,12]]}
["Table A2. Number of Participants in Pension Plans"]
["by type of plan and type of participant, 2018"]
["(thousands)"]
[]
["Type of Participant","Total Plans",null,null,"Single-Employer Plans 1",null,null,"Multiemployer Plans 2",null,null,"Multiple−Employer Plans"]
[null,"Total","Defined Benefit","Defined Contribution","Total","Defined Benefit","Defined Contribution","Total","Defined Benefit","Defined Contribution","Total","Defined Benefit","Defined Contribution"]
["Active Participants 3",96449,13073,83376,84051,8362,75689,7423,4270,3153,4976,441,4535]
["Retired or Separated Participants Receiving Benefits 4",12607,11389,1218,8745,7684,1061,3381,3255,126,482,450,31]
["Other Retired or Separated Participants with Vested Right to Benefits 4",30757,9505,21252,25350,6097,19252,3971,3008,964,1436,400,1036]
["Total Participants ",139814,33967,105846,118145,22143,96002,14775,10533,4242,6893,1291,5602]
["Participants with Account Balances 5",80072,"-",80072,72877,"-",72877,3440,"-",3440,3755,"-",3755]
["Beneficiaries 6",2322,2084,238,1564,1356,208,674,654,20,84,75,9]
["Total Participants and Beneficiaries",142135,36051,106084,119709,23499,96210,15449,11186,4262,6977,1366,5611]
[]
["NOTES: Excludes \"one-participant plans.\""]
["Some totals do not equal the sum of the components due to rounding. "]
["Pension plan statistics are weighted to estimate the impact of delinquent filers. This may result in non-integer plan counts and associated statistics in the underlying data. For more information on the weighted estimates, refer to the “Weights” section in the User Guide of the Form 5500 Private Pension Research File."]
["1 For purposes of this report, includes single-employer plans and plans of controlled groups of corporations that are filing as a single-employer plan in accordance with the Form 5500 instructions. All defined benefit plans paying premiums to PBGC's single-employer program are included (except for those that indicated being multiple-employer plans on the Form 5500 or Form 5500-SF)."]
["2 For purposes of this report, includes all defined benefit plans paying premiums to PBGC's multiemployer program."]
["3 The definition of active participants includes individuals who are eligible to elect to have the employer make payments to a 401(k) type plan (even if individuals are not contributing) and nonvested individuals who are earning or retaining credited service under the plan. For more information, please see the Instructions for Form 5500 at https://www.dol.gov/agencies/ebsa/employers-and-advisers/plan-administration-and- compliance/reporting-and-filing/form-5500."]
["4 Beginning with the 2014 Form 5500-SF, eligible filers report both total and active participants. As a result, retired or separated participants are imputed based on the historical distribution of retired or separated participants either receiving benefits or with vested right to benefits. See the related Appendix G in the Private Pension Plan Bulletin Historical Tables and Graphs for more details."]
["5 \"Participants with Account Balances\" are a subset of \"Total Participants and Beneficiaries.\""]
["6 Deceased participants whose beneficiaries are receiving or are entitled to receive benefits. Form 5500-SF filers include deceased participants with total participants but do not report on these participants separately."]
["*/ Fewer than 500 participants."]
["**/ Less than $500,000."]
["- Missing or zero."]
["SOURCE: Form 5500 filings for plan years ending in 2018."]

{"sheet":"7","index":4,"n_rows":30,"n_cols":4,"rows_kept":30,"cut":false,"hidden":false,"merged":[[0,0,0,3],[1,0,1,3],[2,0,2,3],[29,0,29,3],[24,0,24,3],[25,0,25,3],[19,0,19,3],[21,0,21,3],[20,0,20,3],[22,0,22,3],[23,0,23,3]]}
["Table A3. Balance Sheet of Pension Plans"]
["by type of plan, 2018"]
["(millions)"]
[]
["Type of Asset or Liability","Total","Defined Benefit","Defined Contribution"]
[]
["Partnership/Joint Venture Interests",157270,149098,8173]
["Employer Real Property",229,108,120]
["Real Estate (Other Than Employer Real Property)",21528,19239,2289]
["Employer Securities",316874,2373,314501]
["Participant Loans",76683,89,76594]
["Loans (Other Than to Participants)",6545,4508,2037]
["Other Investments 1",7892875,2744555,5148320]
["Form 5500-SF Assets 2",761056,48482,712574]
["Total Assets",9233060,2968452,6264608]
[]
["Total Liabilities",91069,44045,47025]
[]
["Net Assets",9141991,2924407,6217583]
[]
["NOTES: Total asset amounts shown do not include the value of allocated insurance contracts described in 29 C.F.R § 2520.104-44."]
["Excludes \"one-participant plans.\""]
["Some totals do not equal the sum of the components due to rounding. "]
["Pension plan statistics are weighted to estimate the impact of delinquent filers. This may result in non-integer plan counts and associated statistics in the underlying data. For more information on the weighted estimates, refer to the “Weights” section in the User Guide of the Form 5500 Private Pension Research File."]
["1 \"Other Investments\" primarily includes investments in readily tradeable securities, registered investment companies, common collective trusts, and pooled separate accounts. Tables C4, C4(a), C5(a), C5(b), and C5(c) summarize the more detailed Schedule H asset information for large plans."]
["2 The Form 5500-SF generally does not break out assets classes; therefore, all assets reported by Form 5500-SF filers are summarized on this line item."]
["*/ Fewer than 500 participants."]
["**/ Less than $500,000."]
["- Missing or zero."]
["SOURCE: Form 5500 filings for plan years ending in 2018."]

{"sheet":"8","index":5,"n_rows":32,"n_cols":4,"rows_kept":32,"cut":false,"hidden":false,"merged":[[31,0,31,3],[0,0,0,3],[1,0,1,3],[27,0,27,3],[2,0,2,3],[21,0,21,3],[25,0,25,3],[26,0,26,3],[22,0,22,3],[23,0,23,3],[24,0,24,3]]}
["Table A4. Income Statement of Pension Plans"]
["by type of plan, 2018"]
["(millions)"]
[]
["Income and Expenses","Total","Defined Benefit","Defined Contribution"]
["Income"]
["Employer Contributions",280363,97296,183068]
["Participant Contributions",291705,650,291055]
["Contributions From Others (Including Rollovers)",56850,395,56455]
["Noncash Contributions",1389,108,1281]
["All Other Income 1",-324648,-65398,-259249]
["Total Income",305660,33050,272610]
[]
["Expenses"]
["Total Benefit Payments",794659,243968,550691]
["Certain Deemed and/or Corrective Distributions 2",1929,15,1914]
["Administrative Expenses 3",21087,13341,7747]
["Other or Unspecified Expenses",1418,131,1288]
["Total Expenses",819094,257454,561640]
[]
["Net Income",-513434,-224404,-289030]
[]
["NOTES: Excludes \"one-participant plans.\""]
["Some totals do not equal the sum of the components due to rounding. "]
["Pension plan statistics are weighted to estimate the impact of delinquent filers. This may result in non-integer plan counts and associated statistics in the underlying data. For more information on the weighted estimates, refer to the “Weights” section in the User Guide of the Form 5500 Private Pension Research File."]
["1 This table summarizes income and expenses that appear on the Schedule H (generally for plans with 100 or more participants), the Schedule I (generally for plans with fewer than 100 participants that file the Form 5500), and the Form 5500-SF. All income and expense items that appear on the more detailed Schedule H but not the Schedule I or Form 5500-SF (e.g., Interest Earnings, Dividends, Rents, and several line items reporting realized or unrealized gains/losses on investments) are grouped under \"All Other Income\" or \"Other Expenses.\" Tables C8, C9(a), C9(b), and C9(c) summarize the more detailed Schedule H income information for large plans."]
["2 For plans filing Schedule H or Schedule I, this line item represents the combination of \"Corrective Distributions\" and \"Certain Deemed Distributions of Participant Loans\" to be consistent with the Form 5500-SF line item \"Certain Deemed and/or Corrective Distributions.\""]
["3 For Schedule H filers, \"Administrative Expenses\" is equal to the \"Total Administrative Expenses\" line item, while for Schedule I and Form 5500-SF filers, \"Administrative Expenses\" includes only the \"Administrative Service Providers\" line item."]
["*/ Fewer than 500 participants."]
["**/ Less than $500,000."]
["- Missing or zero."]
["SOURCE: Form 5500 filings for plan years ending in 2018."]

{"sheet":"9","index":6,"n_rows":40,"n_cols":13,"rows_kept":40,"cut":false,"hidden":false,"merged":[[0,0,0,12],[1,0,1,12],[2,0,2,12],[4,0,5,0],[4,1,4,3],[4,4,4,6],[4,10,4,12],[4,7,4,9],[39,0,39,12],[28,0,28,12],[33,0,33,12],[34,0,34,12],[35,0,35,12],[30,0,30,12],[29,0,29,12],[31,0,31,12],[32,0,32,12]]}
["Table A5. Amount of Assets in Pension Plans"]
["by type of plan and method of funding, 2018"]
["(millions)"]
[]
["Method of Funding","Total Plans",null,null,"Single-Employer Plans 1",null,null,"Multiemployer Plans 2",null,null,"Multiple−Employer Plans"]
[null,"Total","Defined Benefit","Defined Contribution","Total","Defined Benefit","Defined Contribution","Total","Defined Benefit","Defined Contribution","Total","Defined Benefit","Defined Contribution"]
[]
["Funding Arrangement for Investment of Assets"]
[]
["Total",9233060,2968452,6264608,8115723,2280122,5835601,714677,549162,165515,402659,139168,263492]
["Form 5500-SF 3",761056,48482,712574,756178,48368,707810,"-","-","-",4878,114,4764]
["Insurance",59270,15386,43884,58131,14862,43269,204,153,51,935,371,564]
["Section 412(i) Ins.",1825,1694,132,145,13,132,1680,1680,"-","-","-","-"]
["Trust",5740269,1892788,3847481,5166679,1596241,3570437,320491,239648,80843,253099,56899,196201]
["Trust and Insurance",2670638,1010103,1660535,2134589,620638,1513951,392302,307681,84621,143747,81784,61963]
["Not Determinable ",1,"-",1,1,"-",1,"-","-","-","-","-","-"]
[]
[]
[]
["Funding Arrangement for Payment of Benefits"]
[]
["Total",{"$f":"B10","v":9233060},{"$f":"C10","v":2968452},6264608,8115723,2280122,5835601,714677,549162,165515,402659,139168,263492]
["Form 5500-SF 3",761056,48482,712574,756178,48368,707810,"-","-","-",4878,114,4764]
["Insurance",64204,19397,44807,62745,18607,44138,122,116,7,1337,675,663]
["Section 412(i) Ins.",1852,1734,118,128,10,118,1724,1724,"-","-","-","-"]
["Trust",6032830,2001748,4031082,5259156,1549761,3709394,514473,392926,121546,259202,59061,200141]
["Trust and Insurance",2373117,897091,1476026,2037515,663376,1374139,198359,154396,43962,137243,79319,57924]
["Not Determinable ",1,"-",1,1,"-",1,"-","-","-","-","-","-"]
[]
["NOTES: Total asset amounts shown do not include the value of allocated insurance contracts described in 29 C.F.R § 2520.104-44."]
["Excludes \"one-participant plans.\""]
["Some totals do not equal the sum of the components due to rounding. "]
["Pension plan statistics are weighted to estimate the impact of delinquent filers. This may result in non-integer plan counts and associated statistics in the underlying data. For more information on the weighted estimates, refer to the “Weights” section in the User Guide of the Form 5500 Private Pension Research File."]
["1 For purposes of this report, includes single-employer plans and plans of controlled groups of corporations that are filing as a single-employer plan in accordance with the Form 5500 instructions. All defined benefit plans paying premiums to PBGC's single-employer program are included (except for those that indicated being multiple-employer plans on the Form 5500 or Form 5500-SF)."]
["2 For purposes of this report, includes all defined benefit plans paying premiums to PBGC's multiemployer program."]
["3 Form 5500-SF filers do not report on the plan funding or benefit arrangements."]
["*/ Fewer than 500 participants."]
["**/ Less than $500,000."]
["- Missing or zero."]
["SOURCE: Form 5500 filings for plan years ending in 2018."]

{"sheet":"10","index":7,"n_rows":28,"n_cols":11,"rows_kept":28,"cut":false,"hidden":false,"merged":[[0,0,0,10],[1,0,1,10],[12,0,15,0],[9,0,11,0],[5,0,8,0],[3,2,3,4],[3,5,3,7],[3,8,3,10],[3,0,4,1],[27,0,27,10],[16,0,16,10],[17,0,17,10],[21,0,21,10],[18,0,18,10],[22,0,22,10],[23,0,23,10],[25,0,25,10],[24,0,24,10],[19,0,19,10],[20,0,20,10]]}
["Table A6. Collective Bargaining Status of Pension Plans, Total Participants, and Assets"]
["by type of plan, 2018"]
[]
["Collective Bargaining Status / Plan Entity",null,"Total Plans",null,null,"Defined Benefit",null,null,"Defined Contribution"]
[null,null,"Number of Plans","Total Participants (thousands) ","Total Assets (millions) 1","Number of Plans","Total Participants (thousands) ","Total Assets (millions) 1","Number of Plans","Total Participants (thousands) ","Total Assets (millions) 1"]
["Total","Total",721876,139814,9233060,46869,33967,2968452,675007,105846,6264608]
[null,"Single-Employer 2",714675,118145,8115723,45275,22143,2280122,669400,96002,5835601]
[null,"Multiemployer 3",2472,14775,714677,1388,10533,549162,1084,4242,165515]
[null,"Multiple−Employer",4730,6893,402659,207,1291,139168,4523,5602,263492]
["Noncollectively Bargained Plans","Total",714203,107302,6814404,43699,16431,1581045,670504,90871,5233359]
[null,"Single-Employer 2",709620,101622,6540169,43512,15658,1510050,666108,85965,5030119]
[null,"Multiple−Employer",4582,5680,274235,186,774,70995,4396,4906,203240]
["Collectively Bargained Plans","Total",7674,32511,2418656,3171,17536,1387407,4503,14975,1031249]
[null,"Single-Employer 2",5054,16523,1575554,1763,6486,770072,3292,10038,805482]
[null,"Multiemployer 3",2472,14775,714677,1388,10533,549162,1084,4242,165515]
[null,"Multiple−Employer",148,1213,128425,20,518,68173,127,696,60252]
[]
["NOTES: Some collectively bargained plans cover nonbargaining unit employees."]
["Excludes \"one-participant plans.\""]
["Some totals do not equal the sum of the components due to rounding. "]
["Pension plan statistics are weighted to estimate the impact of delinquent filers. This may result in non-integer plan counts and associated statistics in the underlying data. For more information on the weighted estimates, refer to the “Weights” section in the User Guide of the Form 5500 Private Pension Research File."]
["1 Total asset amounts shown do not include the value of allocated insurance contracts described in 29 C.F.R § 2520.104-44."]
["2 For purposes of this report, includes single-employer plans and plans of controlled groups of corporations that are filing as a single-employer plan in accordance with the Form 5500 instructions. All defined benefit plans paying premiums to PBGC's single-employer program are included (except for those that indicated being multiple-employer plans on the Form 5500 or Form 5500-SF)."]
["3 For purposes of this report, includes all defined benefit plans paying premiums to PBGC's multiemployer program."]
["*/ Fewer than 500 participants."]
["**/ Less than $500,000."]
["- Missing or zero."]
["SOURCE: Form 5500 filings for plan years ending in 2018."]

{"sheet":"11","index":8,"n_rows":30,"n_cols":13,"rows_kept":30,"cut":false,"hidden":false,"merged":[[29,0,29,12],[20,0,20,12],[21,0,21,12],[24,0,24,12],[25,0,25,12],[26,0,26,12],[22,0,22,12],[23,0,23,12],[1,0,1,12],[0,0,0,12],[3,1,3,3],[3,4,3,6],[3,10,3,12],[3,0,4,0],[3,7,3,9]]}
["Table B1. Distribution of Pension Plans"]
["by type of plan and number of participants, 2018"]
[]
["Total Participants ","Total Plans",null,null,"Single-Employer Plans 1",null,null,"Multiemployer Plans 2",null,null,"Multiple−Employer Plans"]
[null,"Total","Defined Benefit","Defined Contribution","Total","Defined Benefit","Defined Contribution","Total","Defined Benefit","Defined Contribution","Total","Defined Benefit","Defined Contribution"]
["Total",721876,46869,675007,714675,45275,669400,2472,1388,1084,4730,207,4523]
["None or Not Reported",28868,3068,25799,28696,3049,25647,24,10,14,147,9,138]
["2-9",248656,22493,226163,248298,22477,225821,4,1,3,354,15,339]
["10-24",175913,8425,167488,175412,8413,166999,12,7,5,489,5,484]
["25-49",102869,3057,99812,102258,3037,99221,22,14,8,589,6,583]
["50-99",73091,2099,70992,72346,2058,70288,52,24,27,694,17,677]
["100-249",46877,2043,44834,45933,1912,44021,193,107,86,751,24,727]
["250-499",19698,1363,18334,18856,1194,17662,296,147,149,546,22,524]
["500-999",11042,1222,9820,10174,948,9225,444,254,190,424,19,404]
["1,000-2,499",7809,1334,6475,6848,948,5899,605,354,251,357,31,326]
["2,500-4,999",3279,740,2540,2749,537,2212,370,189,181,161,14,147]
["5,000-9,999",1778,419,1360,1484,291,1194,199,109,90,95,19,76]
["10,000-19,999",1050,288,762,863,200,663,118,80,38,69,8,61]
["20,000-49,999",677,215,462,550,143,407,90,58,31,37,13,24]
["50,000 or More",270,103,167,209,67,141,43,33,10,18,3,15]
[]
["NOTES: Excludes \"one-participant plans.\""]
["Some totals do not equal the sum of the components due to rounding. "]
["Pension plan statistics are weighted to estimate the impact of delinquent filers. This may result in non-integer plan counts and associated statistics in the underlying data. For more information on the weighted estimates, refer to the “Weights” section in the User Guide of the Form 5500 Private Pension Research File."]
["1 For purposes of this report, includes single-employer plans and plans of controlled groups of corporations that are filing as a single-employer plan in accordance with the Form 5500 instructions. All defined benefit plans paying premiums to PBGC's single-employer program are included (except for those that indicated being multiple-employer plans on the Form 5500 or Form 5500-SF)."]
["2 For purposes of this report, includes all defined benefit plans paying premiums to PBGC's multiemployer program."]
["*/ Fewer than 500 participants."]
["**/ Less than $500,000."]
["- Missing or zero."]
["SOURCE: Form 5500 filings for plan years ending in 2018."]

{"sheet":"12","index":9,"n_rows":39,"n_cols":13,"rows_kept":39,"cut":false,"hidden":false,"merged":[[35,0,35,12],[38,0,38,12],[34,0,34,12],[29,0,29,12],[33,0,33,12],[31,0,31,12],[30,0,30,12],[32,0,32,12],[28,0,28,12],[3,0,4,0],[27,0,27,12],[0,0,0,12],[1,0,1,12],[3,1,3,3],[3,4,3,6],[3,10,3,12],[3,7,3,9]]}
["Table B2. Distribution of Pension Plans"]
["by type of plan and amount of assets, 2018"]
[]
["Total Assets","Total Plans",null,null,"Single-Employer Plans 1",null,null,"Multiemployer Plans 2",null,null,"Multiple−Employer Plans"]
[null,"Total","Defined Benefit","Defined Contribution","Total","Defined Benefit","Defined Contribution","Total","Defined Benefit","Defined Contribution","Total","Defined Benefit","Defined Contribution"]
["Total",721876,46869,675007,714675,45275,669400,2472,1388,1084,4730,207,4523]
["None or Not Reported",30727,3168,27559,30557,3152,27405,24,7,17,146,9,137]
["$1-24K",35492,252,35239,35415,244,35170,13,8,5,64,"-",64]
["25-49K",21809,161,21648,21752,153,21599,9,8,1,48,"-",48]
["50-99K",35435,738,34697,35345,728,34617,12,10,2,78,"-",78]
["100-249K",77547,3770,73777,77314,3747,73567,29,22,7,204,1,203]
["250-499K",90180,6018,84162,89916,5993,83923,23,18,5,240,7,233]
["500-999K",114328,8697,105631,113919,8676,105242,26,16,10,383,5,378]
["1-2.49M",151156,11097,140059,150332,11058,139274,60,30,29,764,9,755]
["2.5-4.9M",74944,4403,70542,74185,4350,69835,91,40,51,669,12,656]
["5-9.9M",40398,1830,38568,39650,1768,37883,152,48,103,596,14,582]
["10-24.9M",25790,1864,23926,24795,1689,23107,333,149,184,661,26,635]
["25-49.9M",9503,1227,8276,8832,1009,7823,377,195,182,294,23,271]
["50-74.9M",3726,647,3080,3357,508,2849,238,129,109,131,10,121]
["75-99.9M",1966,398,1568,1741,297,1445,153,93,61,71,8,63]
["100-149.9M",2259,542,1717,1968,400,1568,213,133,80,78,9,69]
["150-199.9M",1292,352,940,1096,254,842,140,84,57,56,14,41]
["200-249.9M",858,240,618,727,182,545,86,52,33,45,6,39]
["250-499.9M",1949,568,1381,1656,412,1245,223,144,79,70,12,58]
["500-999.9M",1194,388,806,1006,278,728,133,95,38,55,15,39]
["1-2.49B",783,284,499,651,211,441,85,61,24,47,13,34]
["2.5B or More",540,225,315,461,169,292,50,44,6,29,12,17]
[]
["NOTES: Total asset amounts shown do not include the value of allocated insurance contracts described in 29 C.F.R § 2520.104-44."]
["Excludes \"one-participant plans.\""]
["Some totals do not equal the sum of the components due to rounding. "]
["The letters K, M, and B denote thousands, millions, and billions, respectively."]
["Pension plan statistics are weighted to estimate the impact of delinquent filers. This may result in non-integer plan counts and associated statistics in the underlying data. For more information on the weighted estimates, refer to the “Weights” section in the User Guide of the Form 5500 Private Pension Research File."]
["1 For purposes of this report, includes single-employer plans and plans of controlled groups of corporations that are filing as a single-employer plan in accordance with the Form 5500 instructions. All defined benefit plans paying premiums to PBGC's single-employer program are included (except for those that indicated being multiple-employer plans on the Form 5500 or Form 5500-SF)."]
["2 For purposes of this report, includes all defined benefit plans paying premiums to PBGC's multiemployer program."]
["*/ Fewer than 500 participants."]
["**/ Less than $500,000."]
["- Missing or zero."]
["SOURCE: Form 5500 filings for plan years ending in 2018."]

{"sheet":"13","index":10,"n_rows":31,"n_cols":13,"rows_kept":31,"cut":false,"hidden":false,"merged":[[3,7,3,9],[0,0,0,12],[1,0,1,12],[26,0,26,12],[2,0,2,12],[3,0,4,0],[3,1,3,3],[3,4,3,6],[3,10,3,12],[23,0,23,12],[30,0,30,12],[19,0,19,12],[20,0,20,12],[21,0,21,12],[24,0,24,12],[25,0,25,12],[27,0,27,12],[22,0,22,12]]}
["Table B3. Distribution of Pension Plans"]
["by type of plan and industry, 2018"]
[]
["Industry","Total Plans",null,null,"Single-Employer Plans 1",null,null,"Multiemployer Plans 2",null,null,"Multiple−Employer Plans"]
[null,"Total","Defined Benefit","Defined Contribution","Total","Defined Benefit","Defined Contribution","Total","Defined Benefit","Defined Contribution","Total","Defined Benefit","Defined Contribution"]
["Total",721876,46869,675007,714675,45275,669400,2472,1388,1084,4730,207,4523]
["Agriculture",8044,503,7541,7921,482,7440,8,6,2,114,15,99]
["Mining",3447,265,3182,3398,261,3138,6,2,4,43,2,40]
["Utilities",2623,351,2272,2592,343,2248,4,1,3,27,7,20]
["Construction",60457,2876,57580,58999,2343,56656,1078,524,554,379,9,370]
["Manufacturing",74135,5222,68913,73466,5064,68403,168,125,42,501,33,468]
["Wholesale Trade",37641,2492,35149,37315,2459,34856,34,23,11,292,10,282]
["Retail Trade",42639,1640,40999,42143,1573,40570,81,65,16,415,2,413]
["Transportation",14300,747,13553,13998,636,13362,156,104,53,146,7,139]
["Information",13387,793,12594,13266,758,12507,41,28,13,80,6,74]
["Finance, Insurance, and Real Estate",66719,5683,61036,65649,5333,60316,561,324,238,508,26,482]
["Services",383080,25563,357517,380811,25387,355423,202,120,82,2067,55,2012]
["Misc. Organizations 3",15185,727,14458,14898,628,14269,130,66,65,157,33,124]
["Industry Not Reported",221,8,213,219,8,211,1,"-",1,1,"-",1]
[]
["NOTES: Industry classifications are consistent with definitions of principal business activity listed in the 2018 Form 5500 Instructions. These principal business activity codes are based on the North American Industry Classification System."]
["Excludes \"one-participant plans.\""]
["Some totals do not equal the sum of the components due to rounding. "]
["Pension plan statistics are weighted to estimate the impact of delinquent filers. This may result in non-integer plan counts and associated statistics in the underlying data. For more information on the weighted estimates, refer to the “Weights” section in the User Guide of the Form 5500 Private Pension Research File."]
["1 For purposes of this report, includes single-employer plans and plans of controlled groups of corporations that are filing as a single-employer plan in accordance with the Form 5500 instructions. All defined benefit plans paying premiums to PBGC's single-employer program are included (except for those that indicated being multiple-employer plans on the Form 5500 or Form 5500-SF)."]
["2 For purposes of this report, includes all defined benefit plans paying premiums to PBGC's multiemployer program."]
["3 Religious, grantmaking, civic, professional, labor, and similar organizations."]
["*/ Fewer than 500 participants."]
["**/ Less than $500,000."]
["- Missing or zero."]
["SOURCE: Form 5500 filings for plan years ending in 2018."]

{"sheet":"14","index":11,"n_rows":30,"n_cols":13,"rows_kept":30,"cut":false,"hidden":false,"merged":[[29,0,29,12],[20,0,20,12],[24,0,24,12],[25,0,25,12],[21,0,21,12],[26,0,26,12],[22,0,22,12],[23,0,23,12],[0,0,0,12],[1,0,1,12],[2,0,2,12],[4,1,4,3],[4,4,4,6],[4,10,4,12],[4,0,5,0],[4,7,4,9]]}
["Table B4. Distribution of Participants"]
["by type of plan and number of participants, 2018"]
["(thousands)"]
[]
["Total Participants ","Total Plans",null,null,"Single-Employer Plans 1",null,null,"Multiemployer Plans 2",null,null,"Multiple−Employer Plans"]
[null,"Total","Defined Benefit","Defined Contribution","Total","Defined Benefit","Defined Contribution","Total","Defined Benefit","Defined Contribution","Total","Defined Benefit","Defined Contribution"]
["Total",139814,33967,105846,118145,22143,96002,14775,10533,4242,6893,1291,5602]
["2-9",1255,103,1152,1253,103,1150,"*/","*/","*/",2,"*/",2]
["10-24",2748,126,2622,2739,126,2613,"*/","*/","*/",8,"*/",8]
["25-49",3594,104,3490,3572,104,3468,1,1,"*/",21,"*/",21]
["50-99",5124,148,4976,5070,145,4926,4,2,2,50,1,48]
["100-249",7211,336,6875,7056,312,6743,34,19,15,121,4,116]
["250-499",6892,488,6404,6585,425,6160,113,56,57,194,8,186]
["500-999",7707,871,6836,7086,674,6411,320,183,137,301,14,287]
["1,000-2,499",12120,2125,9995,10592,1506,9086,970,571,400,557,48,509]
["2,500-4,999",11473,2631,8841,9610,1907,7703,1299,672,627,564,52,512]
["5,000-9,999",12401,2932,9469,10340,2018,8322,1396,773,623,665,141,524]
["10,000-19,999",14786,4099,10687,12129,2844,9284,1678,1139,540,979,116,863]
["20,000-49,999",20870,6579,14291,16999,4363,12636,2745,1842,903,1126,374,752]
["50,000 or More",33634,13425,20209,25115,7616,17499,6214,5277,937,2304,532,1772]
[]
["NOTES: Excludes \"one-participant plans.\""]
["Some totals do not equal the sum of the components due to rounding. "]
["Pension plan statistics are weighted to estimate the impact of delinquent filers. This may result in non-integer plan counts and associated statistics in the underlying data. For more information on the weighted estimates, refer to the “Weights” section in the User Guide of the Form 5500 Private Pension Research File."]
["1 For purposes of this report, includes single-employer plans and plans of controlled groups of corporations that are filing as a single-employer plan in accordance with the Form 5500 instructions. All defined benefit plans paying premiums to PBGC's single-employer program are included (except for those that indicated being multiple-employer plans on the Form 5500 or Form 5500-SF)."]
["2 For purposes of this report, includes all defined benefit plans paying premiums to PBGC's multiemployer program."]
["*/ Fewer than 500 participants."]
["**/ Less than $500,000."]
["- Missing or zero."]
["SOURCE: Form 5500 filings for plan years ending in 2018."]

{"sheet":"15","index":12,"n_rows":40,"n_cols":13,"rows_kept":40,"cut":false,"hidden":false,"merged":[[39,0,39,12],[35,0,35,12],[34,0,34,12],[4,0,5,0],[30,0,30,12],[4,1,4,3],[32,0,32,12],[36,0,36,12],[37,0,37,12],[38,0,38,12],[28,0,28,12],[29,0,29,12],[31,0,31,12],[33,0,33,12],[0,0,0,12],[1,0,1,12],[2,0,2,12],[4,10,4,12],[4,4,4,6],[4,7,4,9]]}
["Table B5. Distribution of Participants"]
["by type of plan and amount of assets, 2018"]
["(thousands)"]
[]
["Total Assets","Total",null,null,"Single-Employer Plans 1",null,null,"Multiemployer Plans 2",null,null,"Multiple−Employer Plans"]
[null,"Total","Defined Benefit","Defined Contribution","Total","Defined Benefit","Defined Contribution","Total","Defined Benefit","Defined Contribution","Total","Defined Benefit","Defined Contribution"]
["Total",139814,33967,105846,118145,22143,96002,14775,10533,4242,6893,1291,5602]
["None or Not Reported",60,4,56,56,3,53,2,"*/",2,2,1,1]
["$1-24K",423,2,422,418,1,417,1,1,"*/",4,"-",4]
["25-49K",294,2,292,292,1,291,1,1,"-",1,"-",1]
["50-99K",510,6,504,506,4,501,2,2,1,2,"-",2]
["100-249K",1269,32,1237,1253,26,1227,8,6,1,8,"*/",8]
["250-499K",1767,63,1704,1746,54,1692,10,9,1,11,"*/",11]
["500-999K",2940,100,2841,2903,93,2811,12,7,5,25,"*/",25]
["1-2.49M",6103,199,5904,5984,175,5809,33,24,9,86,"*/",86]
["2.5-4.9M",5876,200,5676,5651,149,5502,93,50,43,132,1,131]
["5-9.9M",6652,236,6416,6112,199,5913,149,34,114,391,2,389]
["10-24.9M",9060,579,8482,8305,465,7840,304,100,204,452,14,438]
["25-49.9M",7162,748,6414,6229,537,5692,602,198,403,331,13,318]
["50-74.9M",4911,723,4188,4094,464,3630,490,251,239,326,8,318]
["75-99.9M",3716,587,3129,3131,373,2759,419,204,215,165,10,155]
["100-149.9M",5551,1031,4521,4574,679,3895,713,341,371,265,11,254]
["150-199.9M",4451,905,3546,3726,601,3125,557,273,284,168,31,137]
["200-249.9M",3535,844,2691,2888,581,2307,398,241,157,248,22,227]
["250-499.9M",11530,2759,8771,9595,1789,7806,1405,905,500,530,65,466]
["500-999.9M",11944,3489,8454,9448,2128,7321,1910,1217,693,585,145,440]
["1-2.49B",15877,5880,9996,12242,3852,8390,2405,1776,630,1229,252,977]
["2.5B or More",36183,15579,20604,28991,9971,19020,5262,4892,370,1930,716,1214]
[]
["NOTES: Total asset amounts shown do not include the value of allocated insurance contracts described in 29 C.F.R § 2520.104-44."]
["Excludes \"one-participant plans.\""]
["Some totals do not equal the sum of the components due to rounding. "]
["The letters K, M, and B denote thousands, millions, and billions, respectively."]
["Pension plan statistics are weighted to estimate the impact of delinquent filers. This may result in non-integer plan counts and associated statistics in the underlying data. For more information on the weighted estimates, refer to the “Weights” section in the User Guide of the Form 5500 Private Pension Research File."]
["1 For purposes of this report, includes single-employer plans and plans of controlled groups of corporations that are filing as a single-employer plan in accordance with the Form 5500 instructions. All defined benefit plans paying premiums to PBGC's single-employer program are included (except for those that indicated being multiple-employer plans on the Form 5500 or Form 5500-SF)."]
["2 For purposes of this report, includes all defined benefit plans paying premiums to PBGC's multiemployer program."]
["*/ Fewer than 500 participants."]
["**/ Less than $500,000."]
["- Missing or zero."]
["SOURCE: Form 5500 filings for plan years ending in 2018."]

{"sheet":"16","index":13,"n_rows":32,"n_cols":13,"rows_kept":32,"cut":false,"hidden":false,"merged":[[31,0,31,12],[26,0,26,12],[27,0,27,12],[4,10,4,12],[20,0,20,12],[4,4,4,6],[4,0,5,0],[4,1,4,3],[29,0,29,12],[30,0,30,12],[4,7,4,9],[24,0,24,12],[0,0,0,12],[2,0,2,12],[1,0,1,12],[3,0,3,12],[28,0,28,12],[21,0,21,12],[25,0,25,12],[22,0,22,12],[23,0,23,12]]}
["Table B6. Distribution of Participants"]
["by type of plan and industry, 2018"]
["(thousands)"]
[]
["Industry","Total Plans",null,null,"Single-Employer Plans 1",null,null,"Multiemployer Plans 2",null,null,"Multiple−Employer Plans"]
[null,"Total","Defined Benefit","Defined Contribution","Total","Defined Benefit","Defined Contribution","Total","Defined Benefit","Defined Contribution","Total","Defined Benefit","Defined Contribution"]
["Total",139814,33967,105846,118145,22143,96002,14775,10533,4242,6893,1291,5602]
["Agriculture",864,106,758,731,55,677,24,16,8,109,35,74]
["Mining",973,227,746,904,223,680,3,2,1,66,1,65]
["Utilities",1732,833,899,1555,753,802,9,"*/",9,168,80,88]
["Construction",8248,2964,5284,3220,55,3165,4842,2901,1940,186,8,178]
["Manufacturing",26932,9837,17095,24723,8436,16287,962,815,147,1247,586,661]
["Wholesale Trade",4449,579,3870,4191,493,3698,64,47,17,195,39,156]
["Retail Trade",15079,2307,12772,13114,696,12418,1709,1611,97,257,"*/",256]
["Transportation",6934,2504,4430,5012,1133,3879,1781,1327,455,141,44,97]
["Information",5513,1814,3699,4660,1495,3166,461,244,218,391,76,315]
["Finance, Insurance, and Real Estate",14445,5151,9294,11030,3004,8026,2777,2026,751,638,120,518]
["Services",52271,6800,45470,47188,5175,42013,1786,1349,437,3297,277,3020]
["Misc. Organizations 3",2365,840,1525,1808,620,1187,358,194,164,199,25,174]
["Industry Not Reported",9,4,5,8,4,4,"-","-","-",1,"-",1]
[]
["NOTES: Industry classifications are consistent with definitions of principal business activity listed in the 2018 Form 5500 Instructions. These principal business activity codes are based on the North American Industry Classification System."]
["Excludes \"one-participant plans.\""]
["Some totals do not equal the sum of the components due to rounding. "]
["Pension plan statistics are weighted to estimate the impact of delinquent filers. This may result in non-integer plan counts and associated statistics in the underlying data. For more information on the weighted estimates, refer to the “Weights” section in the User Guide of the Form 5500 Private Pension Research File."]
["1 For purposes of this report, includes single-employer plans and plans of controlled groups of corporations that are filing as a single-employer plan in accordance with the Form 5500 instructions. All defined benefit plans paying premiums to PBGC's single-employer program are included (except for those that indicated being multiple-employer plans on the Form 5500 or Form 5500-SF)."]
["2 For purposes of this report, includes all defined benefit plans paying premiums to PBGC's multiemployer program."]
["3 Religious, grantmaking, civic, professional, labor, and similar organizations."]
["*/ Fewer than 500 participants."]
["**/ Less than $500,000."]
["- Missing or zero."]
["SOURCE: Form 5500 filings for plan years ending in 2018."]

{"sheet":"17","index":14,"n_rows":23,"n_cols":5,"rows_kept":23,"cut":false,"hidden":false,"merged":[[0,0,0,4],[1,0,1,4],[2,0,2,4],[13,0,13,4],[22,0,22,4],[11,0,11,4],[12,0,12,4],[16,0,16,4],[17,0,17,4],[18,0,18,4],[14,0,14,4],[15,0,15,4]]}
["Table B7. Distribution of Active Participants"]
["by type of plan, 2018 "]
["(thousands)"]
[]
["Type of Plan 1","Total Plans","Single-Employer Plans 2","Multiemployer Plans 3","Multiple−Employer Plans"]
["Total",96449,84051,7423,4976]
["Defined Benefit",13073,8362,4270,441]
["Defined Contribution",83376,75689,3153,4535]
["401(k) Type",70335,64783,1255,4297]
["403(b) ",6896,6699,1,195]
["Other Defined Contribution ",6145,4206,1896,43]
[]
["NOTES: The definition of active participants includes individuals who are eligible to elect to have the employer make payments to a 401(k) type plan (even if individuals are not contributing) and nonvested individuals who are earning or retaining credited service under the plan. For more information, please see the Instructions for Form 5500 at https://www.dol.gov/agencies/ebsa/employers-and-advisers/plan-administration-and- compliance/reporting-and-filing/form-5500."]
["Excludes \"one-participant plans.\""]
["Some totals do not equal the sum of the components due to rounding. "]
["Pension plan statistics are weighted to estimate the impact of delinquent filers. This may result in non-integer plan counts and associated statistics in the underlying data. For more information on the weighted estimates, refer to the “Weights” section in the User Guide of the Form 5500 Private Pension Research File."]
["1 An annuity arrangement under Code section 403(b)(1) and custodial account arrangement under Code section 403(b)(7) are grouped under the category of 403(b). These numbers may not represent all 403(b) plans because those 403(b) plans that are not established or maintained by an employer as described in DOL Regulation 29 C.F.R § 2510.3-2(f) are exempt from filing a Form 5500/5500-SF. These data include only 403(b) plans that file the Form 5500 or Form 5500-SF. Additional information on 403(b) filing requirements can be found in Field Assistance Bulletins 2009-02 and 2010-01. Approximately 0.05% of individual account plans indicate both 401(k) and 403(b) plan characteristics. For purposes of this report, they are classified as 401(k) type plans."]
["2 For purposes of this report, includes single-employer plans and plans of controlled groups of corporations that are filing as a single-employer plan in accordance with the Form 5500 instructions. All defined benefit plans paying premiums to PBGC's single-employer program are included (except for those that indicated being multiple-employer plans on the Form 5500 or Form 5500-SF)."]
["3 For purposes of this report, includes all defined benefit plans paying premiums to PBGC's multiemployer program."]
["*/ Fewer than 500 participants."]
["**/ Less than $500,000."]
["- Missing or zero."]
["SOURCE: Form 5500 filings for plan years ending in 2018."]

{"sheet":"18","index":15,"n_rows":37,"n_cols":13,"rows_kept":37,"cut":false,"hidden":false,"merged":[[0,0,0,12],[31,0,31,12],[36,0,36,9],[3,0,4,0],[3,1,3,3],[3,4,3,6],[3,7,3,9],[26,0,26,9],[33,0,33,9],[32,0,32,12],[1,0,1,12],[3,10,3,12],[28,0,28,12],[27,0,27,12],[30,0,30,12],[29,0,29,12]]}
["Table B8. Number of Plans"]
["by type of plan and method of funding, 2018"]
[]
["Method of Funding","Total Plans",null,null,"Single-Employer Plans 1",null,null,"Multiemployer Plans 2",null,null,"Multiple−Employer Plans"]
[null,"Total","Defined Benefit","Defined Contribution","Total","Defined Benefit","Defined Contribution","Total","Defined Benefit","Defined Contribution","Total","Defined Benefit","Defined Contribution"]
[]
["Funding Arrangement for Investment of Assets"]
[]
["Total",721876,46869,675007,714675,45275,669400,2472,1388,1084,4730,207,4523]
["Form 5500-SF 3",578821,36074,542747,576879,36038,540841,"-","-","-",1943,36,1907]
["Insurance",4274,364,3910,4215,352,3863,10,6,4,49,6,42]
["Section 412(i) Ins.",179,133,47,175,130,46,4,3,1,"-","-","-"]
["Trust ",98343,8386,89957,95080,7270,87810,1664,993,671,1599,123,1476]
["Trust and Insurance",40066,1906,38159,38135,1479,36656,793,386,406,1138,41,1097]
["Not Determinable ",193,6,187,191,6,185,1,"-",1,1,"-",1]
[]
[]
["Funding Arrangement for Payment of Benefits"]
[]
["Total",{"$f":"B9","v":721876},{"$f":"C9","v":46869},675007,714675,45275,669400,2472,1388,1084,4730,207,4523]
["Form 5500-SF 3",578821,36074,542747,576879,36038,540841,"-","-","-",1943,36,1907]
["Insurance",4123,393,3730,4055,379,3676,10,7,3,58,7,51]
["Section 412(i) Ins.",179,131,49,175,128,48,4,3,1,"-","-","-"]
["Trust ",103868,8494,95375,100148,7188,92960,2003,1183,820,1718,123,1595]
["Trust and Insurance",34691,1771,32920,33227,1536,31690,453,195,259,1011,40,971]
["Not Determinable ",193,6,187,191,6,185,1,"-",1,1,"-",1]
[]
["NOTES: Excludes \"one-participant plans.\""]
["Some totals do not equal the sum of the components due to rounding. "]
["Pension plan statistics are weighted to estimate the impact of delinquent filers. This may result in non-integer plan counts and associated statistics in the underlying data. For more information on the weighted estimates, refer to the “Weights” section in the User Guide of the Form 5500 Private Pension Research File."]
["1 For purposes of this report, includes single-employer plans and plans of controlled groups of corporations that are filing as a single-employer plan in accordance with the Form 5500 instructions. All defined benefit plans paying premiums to PBGC's single-employer program are included (except for those that indicated being multiple-employer plans on the Form 5500 or Form 5500-SF)."]
["2 For purposes of this report, includes all defined benefit plans paying premiums to PBGC's multiemployer program."]
["3 Form 5500-SF filers do not report on the plan funding or benefit arrangements."]
["*/ Fewer than 500 participants."]
["**/ Less than $500,000."]
["- Missing or zero."]
["SOURCE: Form 5500 filings for plan years ending in 2018."]

{"sheet":"19","index":16,"n_rows":38,"n_cols":13,"rows_kept":38,"cut":false,"hidden":false,"merged":[[37,0,37,12],[0,0,0,12],[1,0,1,12],[2,0,2,12],[33,0,33,12],[4,0,5,0],[4,1,4,3],[4,4,4,6],[4,10,4,12],[31,0,31,12],[28,0,28,12],[34,0,34,12],[32,0,32,12],[29,0,29,12],[4,7,4,9],[30,0,30,12]]}
["Table B9. Number of Participants"]
["by type of plan and method of funding, 2018"]
["(thousands)"]
[]
["Method of Funding","Total Plans",null,null,"Single-Employer Plans 1",null,null,"Multiemployer Plans 2",null,null,"Multiple−Employer Plans"]
[null,"Total","Defined Benefit","Defined Contribution","Total","Defined Benefit","Defined Contribution","Total","Defined Benefit","Defined Contribution","Total","Defined Benefit","Defined Contribution"]
[]
["Funding Arrangement for Investment of Assets"]
[]
["Total",139814,33967,105846,118145,22143,96002,14775,10533,4242,6893,1291,5602]
["Form 5500-SF 3",12966,451,12514,12877,450,12426,"-","-","-",89,1,88]
["Insurance",1610,166,1444,1565,159,1407,5,2,2,40,5,35]
["Section 412(i) Ins.",34,31,3,4,1,3,30,30,"*/","-","-","-"]
["Trust",81392,21893,59500,69731,16146,53585,7354,5094,2261,4307,653,3654]
["Trust and Insurance",43809,11426,32383,33966,5387,28579,7385,5407,1979,2457,632,1825]
["Not Determinable ",2,"*/",2,2,"*/",2,"-","-","-","*/","-","*/"]
[]
[]
["Funding Arrangement for Payment of Benefits"]
[]
["Total",{"$f":"B10","v":139814},{"$f":"C10","v":33967},105846,118145,22143,96002,14775,10533,4242,6893,1291,5602]
["Form 5500-SF 3",12966,451,12514,12877,450,12426,"-","-","-",89,1,88]
["Insurance",1461,210,1251,1423,201,1222,5,3,2,33,6,27]
["Section 412(i) Ins.",33,31,3,4,1,3,30,30,"*/","-","-","-"]
["Trust ",87473,23898,63575,71992,15507,56485,11041,7729,3312,4439,662,3777]
["Trust and Insurance",37878,9377,28501,31847,5984,25864,3699,2771,928,2332,622,1709]
["Not Determinable ",2,"*/",2,2,"*/",2,"-","-","-","*/","-","*/"]
[]
["NOTES: Excludes \"one-participant plans.\""]
["Some totals do not equal the sum of the components due to rounding. "]
["Pension plan statistics are weighted to estimate the impact of delinquent filers. This may result in non-integer plan counts and associated statistics in the underlying data. For more information on the weighted estimates, refer to the “Weights” section in the User Guide of the Form 5500 Private Pension Research File."]
["1 For purposes of this report, includes single-employer plans and plans of controlled groups of corporations that are filing as a single-employer plan in accordance with the Form 5500 instructions. All defined benefit plans paying premiums to PBGC's single-employer program are included (except for those that indicated being multiple-employer plans on the Form 5500 or Form 5500-SF)."]
["2 For purposes of this report, includes all defined benefit plans paying premiums to PBGC's multiemployer program."]
["3 Form 5500-SF filers do not report on the plan funding or benefit arrangements."]
["*/ Fewer than 500 participants."]
["**/ Less than $500,000."]
["- Missing or zero."]
["SOURCE: Form 5500 filings for plan years ending in 2018."]

{"sheet":"20","index":17,"n_rows":32,"n_cols":13,"rows_kept":32,"cut":false,"hidden":false,"merged":[[0,0,0,12],[1,0,1,12],[2,0,2,12],[4,10,4,12],[4,1,4,3],[4,4,4,6],[4,7,4,9],[4,0,5,0],[31,0,31,12],[21,0,21,12],[26,0,26,12],[27,0,27,12],[29,0,29,12],[22,0,22,12],[28,0,28,12],[23,0,23,12],[30,0,30,6],[24,0,24,12],[25,0,25,12]]}
["Table C1. Distribution of Assets"]
["by number of participants, 2018"]
["(millions)"]
[]
["Total Participants ","Total Plans",null,null,"Single-Employer Plans 1",null,null,"Multiemployer Plans 2",null,null,"Multiple−Employer Plans"]
[null,"Total","Defined Benefit","Defined Contribution","Total","Defined Benefit","Defined Contribution","Total","Defined Benefit","Defined Contribution","Total","Defined Benefit","Defined Contribution"]
["Total",9233060,2968452,6264608,8115723,2280122,5835601,714677,549162,165515,402659,139168,263492]
["None or Not Reported",13523,752,12771,13493,746,12747,6,6,"**/",24,"**/",24]
["2-9",172065,23819,148246,171736,23794,147942,1,1,"**/",329,24,304]
["10-24",204896,11805,193092,204260,11800,192460,4,1,3,632,3,629]
["25-49",208780,7438,201342,207334,7413,199921,31,13,18,1415,12,1403]
["50-99",256026,10789,245237,253107,10549,242558,190,77,113,2729,163,2566]
["100-249",350302,30607,319694,342252,29071,313181,1953,987,965,6096,549,5548]
["250-499",335106,41396,293710,318531,36541,281990,7286,3975,3311,9289,880,8409]
["500-999",390114,72306,317808,357134,58189,298945,20162,12557,7605,12818,1560,11258]
["1,000-2,499",700282,183872,516410,611639,137494,474145,62999,41749,21250,25644,4629,21015]
["2,500-4,999",764431,233520,530911,655481,178405,477075,82978,49815,33162,25973,5299,20674]
["5,000-9,999",875575,263401,612174,743396,190142,553253,82956,54483,28474,49223,18776,30446]
["10,000-19,999",1012938,369941,642998,865282,285685,579596,88721,73161,15561,58936,11095,47841]
["20,000-49,999",1657178,618435,1038742,1430493,471892,958602,145644,111371,34274,81040,35173,45867]
["50,000 or More",2291845,1100372,1191473,1941587,838400,1103186,221746,200967,20779,128511,61004,67507]
[]
["NOTES: Total asset amounts shown do not include the value of allocated insurance contracts described in 29 C.F.R § 2520.104-44."]
["Excludes \"one-participant plans.\""]
["Some totals do not equal the sum of the components due to rounding. "]
["Pension plan statistics are weighted to estimate the impact of delinquent filers. This may result in non-integer plan counts and associated statistics in the underlying data. For more information on the weighted estimates, refer to the “Weights” section in the User Guide of the Form 5500 Private Pension Research File."]
["1 For purposes of this report, includes single-employer plans and plans of controlled groups of corporations that are filing as a single-employer plan in accordance with the Form 5500 instructions. All defined benefit plans paying premiums to PBGC's single-employer program are included (except for those that indicated being multiple-employer plans on the Form 5500 or Form 5500-SF)."]
["2 For purposes of this report, includes all defined benefit plans paying premiums to PBGC's multiemployer program."]
["*/ Fewer than 500 participants."]
["**/ Less than $500,000."]
["- Missing or zero."]
["SOURCE: Form 5500 filings for plan years ending in 2018."]

{"sheet":"21","index":18,"n_rows":39,"n_cols":13,"rows_kept":39,"cut":false,"hidden":false,"merged":[[35,0,35,12],[4,7,4,9],[36,0,36,12],[30,0,30,12],[32,0,32,12],[0,0,0,12],[1,0,1,12],[2,0,2,12],[38,0,38,12],[4,0,5,0],[4,1,4,3],[4,4,4,6],[4,10,4,12],[29,0,29,12],[27,0,27,12],[37,0,37,6],[33,0,33,12],[34,0,34,12],[28,0,28,12],[31,0,31,12]]}
["Table C2. Distribution of Assets"]
["by amount of assets, 2018"]
["(millions)"]
[]
["Total Assets","Total Plans",null,null,"Single-Employer Plans 1",null,null,"Multiemployer Plans 2",null,null,"Multiple−Employer Plans"]
[null,"Total","Defined Benefit","Defined Contribution","Total","Defined Benefit","Defined Contribution","Total","Defined Benefit","Defined Contribution","Total","Defined Benefit","Defined Contribution"]
["Total",9233060,2968452,6264608,8115723,2280122,5835601,714677,549162,165515,402659,139168,263492]
["$1-24K",357,2,355,356,2,354,"**/","**/","**/",1,"-",1]
["25-49K",810,6,804,808,6,802,"**/","**/","**/",2,"-",2]
["50-99K",2621,58,2563,2614,57,2557,1,1,"**/",6,"-",6]
["100-249K",13210,664,12546,13170,660,12510,5,4,1,35,"**/",35]
["250-499K",33079,2226,30853,32980,2217,30763,8,7,2,91,3,89]
["500-999K",83152,6351,76801,82849,6334,76516,20,13,7,282,4,279]
["1-2.49M",243089,17742,225347,241708,17676,224032,101,51,51,1280,16,1264]
["2.5-4.9M",262136,15160,246976,259383,14959,244424,346,154,192,2407,46,2360]
["5-9.9M",280733,12731,268002,275371,12253,263118,1120,364,756,4242,114,4128]
["10-24.9M",396655,30134,366522,380409,27145,353265,5597,2524,3074,10649,465,10184]
["25-49.9M",332387,43971,288416,308214,35890,272323,13783,7251,6533,10390,830,9560]
["50-74.9M",227086,39718,187368,204470,31163,173306,14716,7950,6765,7901,604,7296]
["75-99.9M",169873,34604,135269,150528,25854,124674,13306,8065,5240,6039,685,5354]
["100-149.9M",276235,66143,210092,240699,48807,191892,26070,16255,9816,9466,1082,8384]
["150-199.9M",223135,60944,162191,189131,44113,145018,24362,14448,9914,9642,2383,7259]
["200-249.9M",191672,53977,137695,162257,40785,121472,19271,11849,7423,10143,1343,8800]
["250-499.9M",683074,199823,483251,580769,144865,435904,78192,50928,27263,24113,4030,20084]
["500-999.9M",836228,272359,563869,704350,193796,510554,92993,67868,25125,38885,10696,28190]
["1-2.49B",1210045,452245,757800,1003471,336343,667128,128309,93129,35180,78265,22773,55492]
["2.5B or More",3767484,1659594,2107890,3282187,1297198,1984989,296477,268302,28175,188820,94094,94726]
[]
["NOTES: Total asset amounts shown do not include the value of allocated insurance contracts described in 29 C.F.R § 2520.104-44."]
["Excludes \"one-participant plans.\""]
["Some totals do not equal the sum of the components due to rounding. "]
["The letters K, M, and B denote thousands, millions, and billions, respectively."]
["Pension plan statistics are weighted to estimate the impact of delinquent filers. This may result in non-integer plan counts and associated statistics in the underlying data. For more information on the weighted estimates, refer to the “Weights” section in the User Guide of the Form 5500 Private Pension Research File."]
["1 For purposes of this report, includes single-employer plans and plans of controlled groups of corporations that are filing as a single-employer plan in accordance with the Form 5500 instructions. All defined benefit plans paying premiums to PBGC's single-employer program are included (except for those that indicated being multiple-employer plans on the Form 5500 or Form 5500-SF)."]
["2 For purposes of this report, includes all defined benefit plans paying premiums to PBGC's multiemployer program."]
["*/ Fewer than 500 participants."]
["**/ Less than $500,000."]
["- Missing or zero."]
["SOURCE: Form 5500 filings for plan years ending in 2018."]

{"sheet":"22","index":19,"n_rows":33,"n_cols":13,"rows_kept":33,"cut":false,"hidden":false,"merged":[[31,0,31,6],[32,0,32,12],[29,0,29,12],[30,0,30,12],[22,0,22,12],[23,0,23,12],[26,0,26,12],[27,0,27,12],[28,0,28,12],[24,0,24,12],[25,0,25,12],[21,0,21,12],[0,0,0,12],[1,0,1,12],[2,0,2,12],[4,0,5,0],[4,1,4,3],[4,4,4,6],[4,10,4,12],[20,0,20,12],[4,7,4,9]]}
["Table C3. Distribution of Assets"]
["by industry, 2018"]
["(millions)"]
[]
["Industry","Total Plans",null,null,"Single-Employer Plans 1",null,null,"Multiemployer Plans 2",null,null,"Multiple−Employer Plans"]
[null,"Total","Defined Benefit","Defined Contribution","Total","Defined Benefit","Defined Contribution","Total","Defined Benefit","Defined Contribution","Total","Defined Benefit","Defined Contribution"]
["Total",9233060,2968452,6264608,8115723,2280122,5835601,714677,549162,165515,402659,139168,263492]
["Agriculture",29716,5917,23799,24290,3193,21097,685,459,226,4740,2264,2475]
["Mining",78998,20423,58575,75053,20022,55030,422,401,22,3523,"-",3523]
["Utilities",309158,172108,137050,285834,160510,125324,76,18,57,23249,11581,11669]
["Construction",470232,208113,262119,155998,4347,151652,303468,203064,100404,10766,702,10063]
["Manufacturing",2665452,1077215,1588237,2497924,975377,1522547,31022,28354,2668,136506,73484,63022]
["Wholesale Trade",284681,44235,240446,266496,38657,227840,2187,1747,439,15997,3831,12167]
["Retail Trade",382362,63562,318799,340502,29596,310906,34571,33953,618,7288,13,7276]
["Transportation",435024,213241,221783,316343,113273,203070,105730,95993,9737,12950,3974,8976]
["Information",455373,161554,293819,406616,143320,263296,17604,11166,6437,31154,7068,24086]
["Finance, Insurance, and Real Estate",1177176,434472,742704,1007303,312522,694781,137179,109033,28145,32694,12917,19777]
["Services",2840796,530256,2310540,2664139,460050,2204089,62533,49799,12733,114124,20407,93718]
["Misc. Organizations 3",103430,36966,66464,74643,18866,55777,19201,15173,4028,9586,2927,6659]
["Industry Not Reported",664,390,274,581,390,191,"-","-","-",83,"-",83]
[]
["NOTES: Total asset amounts shown do not include the value of allocated insurance contracts described in 29 C.F.R § 2520.104-44."]
["Industry classifications are consistent with definitions of principal business activity listed in the 2018 Form 5500 Instructions. These principal business activity codes are based on the North American Industry Classification System."]
["Excludes \"one-participant plans.\""]
["Some totals do not equal the sum of the components due to rounding. "]
["Pension plan statistics are weighted to estimate the impact of delinquent filers. This may result in non-integer plan counts and associated statistics in the underlying data. For more information on the weighted estimates, refer to the “Weights” section in the User Guide of the Form 5500 Private Pension Research File."]
["1 For purposes of this report, includes single-employer plans and plans of controlled groups of corporations that are filing as a single-employer plan in accordance with the Form 5500 instructions. All defined benefit plans paying premiums to PBGC's single-employer program are included (except for those that indicated being multiple-employer plans on the Form 5500 or Form 5500-SF)."]
["2 For purposes of this report, includes all defined benefit plans paying premiums to PBGC's multiemployer program."]
["3 Religious, grantmaking, civic, professional, labor, and similar organizations."]
["*/ Fewer than 500 participants."]
["**/ Less than $500,000."]
["- Missing or zero."]
["SOURCE: Form 5500 filings for plan years ending in 2018."]

{"sheet":"23","index":20,"n_rows":23,"n_cols":4,"rows_kept":23,"cut":false,"hidden":false,"merged":[[0,0,0,3],[1,0,1,3],[2,0,2,3]]}
["Table C4. Balance Sheet of Pension Plans with 100 or More Participants"]
["by type of plan, 2018"]
["(millions)"]
[]
["Type of Asset or Liability","Total","Defined Benefit","Defined Contribution"]
["Assets"]
["Total Noninterest-Bearing Cash",10335,4705,5630]
["Employer Contrib. Receivable",79179,45279,33900]
["Participant Contrib. Receivable",2055,20,2035]
["Other Receivables",43721,19967,23754]
["Interest-Bearing Cash",81415,34571,46844]
["U.S. Government Securities",197121,162749,34373]
["Corporate Debt Instruments: Preferred",59857,53388,6469]
["Corporate Debt Instruments: All Other",213754,191725,22029]
["Preferred Stock",2093,1615,478]
["Common Stock",316345,226016,90329]
["Partnership/Joint Venture Interests",155149,148757,6392]
["Real Estate (Other Than Employer Real Property)",19628,18955,673]
["Loans (Other Than to Participants)",5328,4339,989]
["Participant Loans",75820,85,75735]
["Assets in Common/Collective Trusts",1454054,350155,1103899]
["Assets in Pooled Separate Accounts",178189,40513,137676]
[null,null,null," (continued...) "]

{"sheet":"24","index":21,"n_rows":32,"n_cols":4,"rows_kept":32,"cut":false,"hidden":false,"merged":[[30,0,30,3],[31,0,31,3],[0,0,0,3],[1,0,1,3],[2,0,2,3],[24,0,24,3],[25,0,25,3],[28,0,28,3],[29,0,29,3],[26,0,26,3],[27,0,27,3]]}
["Table C4. Balance Sheet of Pension Plans with 100 or More Participants"]
["by type of plan, 2018"]
["(millions)"]
[]
["Type of Asset or Liability","Total","Defined Benefit","Defined Contribution"]
["Assets in Master Trusts",2200934,1193250,1007684]
["Assets in 103-12 Investment Entities",94114,87158,6956]
["Assets in Registered Investment Companies",2452677,233305,2219372]
["Assets in Insurance Co. General Accounts",198672,13393,185279]
["Other General Investments",178047,78957,99090]
["Employer Securities",296563,2365,294198]
["Employer Real Property",195,103,92]
["Buildings and Other Property Used by Plan",640,620,20]
["Other or Unspecified Assets",61885,1860,60025]
["Total Assets",8377770,2913849,5463921]
[]
["Liabilities"]
["Benefit Claims Payable",1352,426,925]
["Operating Payables",6492,4564,1927]
["Acquisition Indebtedness",13057,1105,11952]
["Other Liabilities",52636,37225,15411]
["Total Liabilities",73536,43321,30216]
[]
["Net Assets",8304234,2870529,5433705]
[]
["NOTES: Total asset amounts shown do not include the value of allocated insurance contracts described in 29 C.F.R § 2520.104-44."]
["Some totals do not equal the sum of the components due to rounding. "]
["Pension plan statistics are weighted to estimate the impact of delinquent filers. This may result in non-integer plan counts and associated statistics in the underlying data. For more information on the weighted estimates, refer to the “Weights” section in the User Guide of the Form 5500 Private Pension Research File."]
["*/ Fewer than 500 participants."]
["**/ Less than $500,000."]
["- Missing or zero."]
["SOURCE: Form 5500 filings for plan years ending in 2018."]

{"sheet":"25","index":22,"n_rows":21,"n_cols":4,"rows_kept":21,"cut":false,"hidden":false,"merged":[[0,0,0,3],[1,0,1,3],[2,0,2,3]]}
["Table C4(a). Spread Balance Sheet of Pension Plans with 100 or More Participants"]
["by type of plan, 2018"]
["(millions)"]
[]
["Type of Asset or Liability","Total","Defined Benefit","Defined Contribution"]
["Assets"]
["Total Noninterest-Bearing Cash",16380,8852,7528]
["Employer Contrib. Receivable",79342,45416,33926]
["Participant Contrib. Receivable",2249,101,2148]
["Other Receivables",123159,59549,63610]
["Interest-Bearing Cash",219604,90287,129317]
["U.S. Government Securities",589324,363108,226216]
["Corporate Debt Instruments: Preferred",165659,126092,39567]
["Corporate Debt Instruments: All Other",644831,491277,153554]
["Preferred Stock",27122,16295,10828]
["Common Stock",1714409,749324,965084]
["Partnership/Joint Venture Interests",319167,301686,17482]
["Real Estate (Other Than Employer Real Property)",63494,50992,12502]
["Loans (Other Than to Participants)",27543,15280,12263]
["Participant Loans",76477,98,76378]
[null,null,null," (continued...) "]

{"sheet":"26","index":23,"n_rows":31,"n_cols":4,"rows_kept":31,"cut":false,"hidden":false,"merged":[[0,0,0,3],[1,0,1,3],[2,0,2,3],[30,0,30,3],[23,0,23,3],[22,0,22,3],[27,0,27,3],[28,0,28,3],[29,0,29,3],[24,0,24,3],[25,0,25,3],[26,0,26,3]]}
["Table C4(a). Spread Balance Sheet of Pension Plans with 100 or More Participants"]
["by type of plan, 2018"]
["(millions)"]
[]
["Type of Asset or Liability","Total","Defined Benefit","Defined Contribution"]
["Assets in Registered Investment Companies",3158191,352485,2805707]
["Assets in Insurance Co. General Accounts",248344,20776,227567]
["Other General Investments",449692,210363,239329]
["Employer Securities",389835,9057,380778]
["Employer Real Property",423,331,92]
["Buildings and Other Property Used by Plan",640,620,20]
["Other or Unspecified Assets",61885,1860,60025]
["Total Assets",8377770,2913849,5463921]
[]
["Liabilities"]
["Benefit Claims Payable",1352,426,925]
["Operating Payables",6492,4564,1927]
["Acquisition Indebtedness",13057,1105,11952]
["Other Liabilities",52636,37225,15411]
["Total Liabilities",73536,43321,30216]
[]
["Net Assets",8304234,2870528,5433705]
[]
["NOTE: This table provides an estimate of the underlying asset allocation of investments in direct filing entities (DFEs), even if there were multiple layers of investment through various DFEs. Hence, there are no line items for interests in common/collective trusts, master trust investment accounts, pooled separate accounts or 103-12 Investment Entities. The dollar amounts of these investments are included on the line items in this table. For information on the methodology used to make these estimates, see the DFE User Guide at https://www.dol.gov/agencies/ebsa/researchers/statistics/retirement-bulletins/direct-filing-entity."]
["Total asset amounts shown do not include the value of allocated insurance contracts described in 29 C.F.R § 2520.104-44."]
["Some totals do not equal the sum of the components due to rounding. "]
["Pension plan statistics are weighted to estimate the impact of delinquent filers. This may result in non-integer plan counts and associated statistics in the underlying data. For more information on the weighted estimates, refer to the “Weights” section in the User Guide of the Form 5500 Private Pension Research File."]
["*/ Fewer than 500 participants."]
["**/ Less than $500,000."]
["- Missing or zero."]
["SOURCE: Form 5500 filings for plan years ending in 2018."]

{"sheet":"27","index":24,"n_rows":24,"n_cols":4,"rows_kept":24,"cut":false,"hidden":false,"merged":[[0,0,0,3],[2,0,2,3],[3,0,3,3],[1,0,1,3]]}
["Table C5(a). Balance Sheet of Single-Employer Pension Plans "]
["with 100 or More Participants"]
["by type of plan, 2018"]
["(millions)"]
[]
["Type of Asset or Liability","Total","Defined Benefit","Defined Contribution"]
["Assets"]
["Total Noninterest-Bearing Cash",6966,2206,4759]
["Employer Contrib. Receivable",67107,35712,31395]
["Participant Contrib. Receivable",1867,16,1851]
["Other Receivables",31104,11910,19194]
["Interest-Bearing Cash",62332,20299,42034]
["U.S. Government Securities",150899,127488,23412]
["Corporate Debt Instruments: Preferred",47443,43922,3521]
["Corporate Debt Instruments: All Other",171136,156286,14850]
["Preferred Stock",1595,1195,400]
["Common Stock",196592,121922,74670]
["Partnership/Joint Venture Interests",81373,78795,2579]
["Real Estate (Other Than Employer Real Property)",6684,6504,180]
["Loans (Other Than to Participants)",1615,798,816]
["Participant Loans",70673,24,70650]
["Assets in Common/Collective Trusts",1206007,203555,1002452]
["Assets in Pooled Separate Accounts",146278,28010,118268]
[null,null,null," (continued...) "]

{"sheet":"28","index":25,"n_rows":33,"n_cols":4,"rows_kept":33,"cut":false,"hidden":false,"merged":[[0,0,0,3],[2,0,2,3],[3,0,3,3],[1,0,1,3],[32,0,32,3],[25,0,25,3],[29,0,29,3],[30,0,30,3],[31,0,31,3],[26,0,26,3],[27,0,27,3],[28,0,28,3]]}
["Table C5(a). Balance Sheet of Single-Employer Pension Plans "]
["with 100 or More Participants"]
["by type of plan, 2018"]
["(millions)"]
[]
["Type of Asset or Liability","Total","Defined Benefit","Defined Contribution"]
["Assets in Master Trusts",2078034,1108655,969380]
["Assets in 103-12 Investment Entities",59110,55542,3568]
["Assets in Registered Investment Companies",2209004,162153,2046851]
["Assets in Insurance Co. General Accounts",182285,12070,170215]
["Other General Investments",134837,44901,89936]
["Employer Securities",292046,1985,290061]
["Employer Real Property",165,95,70]
["Buildings and Other Property Used by Plan",1,1,"**/"]
["Other or Unspecified Assets",60639,1776,58863]
["Total Assets",7265794,2225820,5039974]
[]
["Liabilities"]
["Benefit Claims Payable",1103,354,749]
["Operating Payables",4689,2890,1798]
["Acquisition Indebtedness",12813,868,11945]
["Other Liabilities",31072,18050,13022]
["Total Liabilities",49677,22163,27514]
[]
["Net Assets",7216117,2203658,5012460]
[]
["NOTES: Total asset amounts shown do not include the value of allocated insurance contracts described in 29 C.F.R § 2520.104-44."]
["Some totals do not equal the sum of the components due to rounding. "]
["Pension plan statistics are weighted to estimate the impact of delinquent filers. This may result in non-integer plan counts and associated statistics in the underlying data. For more information on the weighted estimates, refer to the “Weights” section in the User Guide of the Form 5500 Private Pension Research File."]
["*/ Fewer than 500 participants."]
["**/ Less than $500,000."]
["- Missing or zero."]
["SOURCE: Form 5500 filings for plan years ending in 2018."]

{"sheet":"29","index":26,"n_rows":24,"n_cols":4,"rows_kept":24,"cut":false,"hidden":false,"merged":[[0,0,0,3],[2,0,2,3],[3,0,3,3],[1,0,1,3]]}
["Table C5(b). Balance Sheet of Multiemployer Pension Plans"]
[" with 100 or More Participants"]
["by type of plan, 2018"]
["(millions)"]
[]
["Type of Asset or Liability","Total","Defined Benefit","Defined Contribution"]
["Assets"]
["Total Noninterest-Bearing Cash",2957,2436,521]
["Employer Contrib. Receivable",7042,6116,925]
["Participant Contrib. Receivable",63,1,62]
["Other Receivables",8369,7725,644]
["Interest-Bearing Cash",15729,13435,2294]
["U.S. Government Securities",40213,31401,8812]
["Corporate Debt Instruments: Preferred",10677,8497,2180]
["Corporate Debt Instruments: All Other",35565,28936,6629]
["Preferred Stock",453,384,69]
["Common Stock",107076,97572,9504]
["Partnership/Joint Venture Interests",68306,65053,3253]
["Real Estate (Other Than Employer Real Property)",12609,12158,451]
["Loans (Other Than to Participants)",3594,3485,108]
["Participant Loans",1051,60,991]
["Assets in Common/Collective Trusts",166490,132053,34437]
["Assets in Pooled Separate Accounts",20235,10943,9292]
[null,null,null," (continued...) "]

{"sheet":"30","index":27,"n_rows":33,"n_cols":4,"rows_kept":33,"cut":false,"hidden":false,"merged":[[0,0,0,3],[1,0,1,3],[2,0,2,3],[3,0,3,3],[25,0,25,3],[32,0,32,3],[26,0,26,3],[29,0,29,3],[30,0,30,3],[31,0,31,3],[27,0,27,3],[28,0,28,3]]}
["Table C5(b). Balance Sheet of Multiemployer Pension Plans"]
[" with 100 or More Participants"]
["by type of plan, 2018"]
["(millions)"]
[]
["Type of Asset or Liability","Total","Defined Benefit","Defined Contribution"]
["Assets in Master Trusts",10033,6278,3754]
["Assets in 103-12 Investment Entities",29422,26063,3359]
["Assets in Registered Investment Companies",125090,63999,61091]
["Assets in Insurance Co. General Accounts",12309,1129,11181]
["Other General Investments",36297,30487,5811]
["Employer Securities",261,260,1]
["Employer Real Property",8,8,"-"]
["Buildings and Other Property Used by Plan",568,556,11]
["Other or Unspecified Assets",30,27,3]
["Total Assets",714445,549064,165381]
[]
["Liabilities"]
["Benefit Claims Payable",221,54,167]
["Operating Payables",1658,1552,106]
["Acquisition Indebtedness",238,233,5]
["Other Liabilities",20300,18362,1938]
["Total Liabilities",22417,20201,2216]
[]
["Net Assets",692029,528864,163165]
[]
["NOTES: Total asset amounts shown do not include the value of allocated insurance contracts described in 29 C.F.R § 2520.104-44."]
["Some totals do not equal the sum of the components due to rounding. "]
["Pension plan statistics are weighted to estimate the impact of delinquent filers. This may result in non-integer plan counts and associated statistics in the underlying data. For more information on the weighted estimates, refer to the “Weights” section in the User Guide of the Form 5500 Private Pension Research File."]
["*/ Fewer than 500 participants."]
["**/ Less than $500,000."]
["- Missing or zero."]
["SOURCE: Form 5500 filings for plan years ending in 2018."]

{"sheet":"31","index":28,"n_rows":24,"n_cols":4,"rows_kept":24,"cut":false,"hidden":false,"merged":[[0,0,0,3],[1,0,1,3],[2,0,2,3],[3,0,3,3]]}
["Table C5(c). Balance Sheet of Multiple-Employer Pension Plans"]
[" with 100 or More Participants"]
["by type of plan, 2018"]
["(millions)"]
[]
["Type of Asset or Liability","Total","Defined Benefit","Defined Contribution"]
["Assets"]
["Total Noninterest-Bearing Cash",413,62,350]
["Employer Contrib. Receivable",5031,3451,1580]
["Participant Contrib. Receivable",125,3,122]
["Other Receivables",4247,332,3916]
["Interest-Bearing Cash",3354,837,2517]
["U.S. Government Securities",6009,3860,2149]
["Corporate Debt Instruments: Preferred",1738,969,768]
["Corporate Debt Instruments: All Other",7053,6503,550]
["Preferred Stock",45,36,8]
["Common Stock",12677,6522,6155]
["Partnership/Joint Venture Interests",5470,4909,561]
["Real Estate (Other Than Employer Real Property)",335,292,43]
["Loans (Other Than to Participants)",119,55,65]
["Participant Loans",4095,"**/",4094]
["Assets in Common/Collective Trusts",81557,14547,67010]
["Assets in Pooled Separate Accounts",11676,1560,10117]
[null,null,null," (continued...) "]

{"sheet":"32","index":29,"n_rows":33,"n_cols":4,"rows_kept":33,"cut":false,"hidden":false,"merged":[[0,0,0,3],[1,0,1,3],[2,0,2,3],[3,0,3,3],[32,0,32,3],[25,0,25,3],[26,0,26,3],[27,0,27,3],[29,0,29,3],[30,0,30,3],[31,0,31,3],[28,0,28,3]]}
["Table C5(c). Balance Sheet of Multiple-Employer Pension Plans"]
[" with 100 or More Participants"]
["by type of plan, 2018"]
["(millions)"]
[]
["Type of Asset or Liability","Total","Defined Benefit","Defined Contribution"]
["Assets in Master Trusts",112867,78317,34550]
["Assets in 103-12 Investment Entities",5582,5552,29]
["Assets in Registered Investment Companies",118583,7152,111431]
["Assets in Insurance Co. General Accounts",4078,194,3884]
["Other General Investments",6912,3569,3343]
["Employer Securities",4256,120,4136]
["Employer Real Property",22,"-",22]
["Buildings and Other Property Used by Plan",71,63,8]
["Other or Unspecified Assets",1216,58,1159]
["Total Assets",397530,138965,258565]
[]
["Liabilities"]
["Benefit Claims Payable",28,18,10]
["Operating Payables",145,122,23]
["Acquisition Indebtedness",6,4,1]
["Other Liabilities",1265,813,451]
["Total Liabilities",1443,957,485]
[]
["Net Assets",396087,138008,258080]
[]
["NOTES: Total asset amounts shown do not include the value of allocated insurance contracts described in 29 C.F.R § 2520.104-44."]
["Some totals do not equal the sum of the components due to rounding. "]
["Pension plan statistics are weighted to estimate the impact of delinquent filers. This may result in non-integer plan counts and associated statistics in the underlying data. For more information on the weighted estimates, refer to the “Weights” section in the User Guide of the Form 5500 Private Pension Research File."]
["*/ Fewer than 500 participants."]
["**/ Less than $500,000."]
["- Missing or zero."]
["SOURCE: Form 5500 filings for plan years ending in 2018."]

{"sheet":"33","index":30,"n_rows":32,"n_cols":7,"rows_kept":32,"cut":false,"hidden":false,"merged":[[0,0,0,6],[1,0,1,6],[2,0,2,6],[31,0,31,6],[25,0,25,6],[24,0,24,6],[28,0,28,6],[29,0,29,3],[30,0,30,3],[26,0,26,6],[27,0,27,6]]}
["Table C6. Percentage Distribution of Assets in Defined Benefit Plans "]
["with 100 or More Participants"]
["by type of asset and amount of assets, 2018"]
[]
["Type of Asset","Total","$1-0.9M","$1.0M-9.9M","$10.0M-249.9M","$250.0M-999.9M","$1.0B or More"]
[]
["Total Assets",1,1,1,1,1,1]
[]
["Cash",1.3,35.799999999999997,4.5999999999999996,2.1,1.5,1.2]
["Receivables",2.2000000000000002,9.9,3.4,2.4,2.2999999999999998,2.2000000000000002]
["U.S. Government Securities",5.6,0.4,2,3.4,4.4000000000000004,6.2]
["Corporate Debt Instruments: Preferred",1.8,0.2,0.6,0.9,1.4,2.1]
["Corporate Debt Instruments: All Other",6.6,2,2.4,4.0999999999999996,5.9,7.1]
["Corporate Stocks",7.8,0.4,6.9,7.1,8.4,7.8]
["Real Estate (Other Than Employer Real Property)",0.7,"-",0.1,0.2,0.5,0.7]
["Loans",0.2,"-","*/","*/",0.1,0.2]
["Assets in Common/Collective Trusts",12,3,5.5,17.5,18.100000000000001,9.8000000000000007]
["Assets in Pooled Separate Accounts",1.4,4.5999999999999996,10.7,4,1.4,0.9]
["Assets in Master Trusts",41,1.7,9.6,19.3,29.8,46.9]
["Assets in 103-12 Investment Entities",3,"-",0.3,2,2.7,3.2]
["Assets in Registered Investment Companies",8,13.4,41.6,30.2,14.3,3.1]
["Assets in Ins. Co. General Accounts",0.5,3.2,2.9,1.1000000000000001,0.6,0.3]
["Employer Securities",0.1,"-",0.1,0.1,0.1,0.1]
["Other or Unspecified Investments",7.9,25.5,9.1999999999999993,5.6,8.6,8.1]
[]
["NOTES: The letters M and B in the column headings denote millions and billions, respectively."]
["Percentage distributions do not sum to 100 percent due to rounding. "]
["Pension plan statistics are weighted to estimate the impact of delinquent filers. This may result in non-integer plan counts and associated statistics in the underlying data. For more information on the weighted estimates, refer to the “Weights” section in the User Guide of the Form 5500 Private Pension Research File."]
["*/ Less than 0.05 percent."]
["**/ Less than $500,000."]
["- Missing or zero."]
["SOURCE: Form 5500 filings for plan years ending in 2018."]

{"sheet":"34","index":31,"n_rows":32,"n_cols":7,"rows_kept":32,"cut":false,"hidden":false,"merged":[[31,0,31,6],[25,0,25,6],[24,0,24,6],[28,0,28,6],[26,0,26,6],[27,0,27,6],[1,0,1,6],[2,0,2,6],[0,0,0,6],[29,0,29,3],[30,0,30,3]]}
["Table C7. Percentage Distribution of Assets in Defined Contribution Plans "]
["with 100 or More Participants"]
["by type of asset and amount of assets, 2018"]
[]
["Type of Asset","Total","$1-0.9M","$1.0M-9.9M","$10.0M-249.9M","$250.0M-999.9M","$1.0B or More"]
[]
["Total Assets",{"$f":"1","v":1},{"$f":"1","v":1},{"$f":"1","v":1},{"$f":"1","v":1},{"$f":"1","v":1},{"$f":"1","v":1}]
[]
["Cash",1,1.2,1.3,1.4,1.1000000000000001,0.7]
["Receivables",1.1000000000000001,0.9,0.7,0.9,1,1.2]
["U.S. Government Securities",0.6,"*/",0.1,0.2,0.3,1]
["Corporate Debt Instruments: Preferred",0.1,"*/","*/","*/",0.1,0.2]
["Corporate Debt Instruments: All Other",0.4,"*/",0.1,0.2,0.2,0.6]
["Corporate Stocks",1.7,0.1,0.4,0.8,0.7,2.5]
["Real Estate (Other Than Employer Real Property)","*/","-","*/","*/","*/","*/"]
["Loans",1.4,1.1000000000000001,1.5,1.4,1.4,1.4]
["Assets in Common/Collective Trusts",20.2,4,5,9.1,18.2,27.3]
["Assets in Pooled Separate Accounts",2.5,12.1,12.9,4.9000000000000004,2,0.9]
["Assets in Master Trusts",18.399999999999999,"*/",0.1,2.2999999999999998,9.3000000000000007,30.8]
["Assets in 103-12 Investment Entities",0.1,0.6,0.1,0.1,0.1,0.2]
["Assets in Registered Investment Companies",40.6,38.5,53.4,66.099999999999994,55.9,22]
["Assets in Ins. Co. General Accounts",3.4,1.9,3.8,5.0999999999999996,4.2,2.2999999999999998]
["Employer Securities",5.4,1.4,2.1,4.4000000000000004,4,6.6]
["Other or Unspecified Investments",3,38.200000000000003,18.600000000000001,3.1,1.6,2.4]
[]
["NOTES: The letters M and B in the column headings denote millions and billions, respectively."]
["Percentage distributions do not sum to 100 percent due to rounding. "]
["Pension plan statistics are weighted to estimate the impact of delinquent filers. This may result in non-integer plan counts and associated statistics in the underlying data. For more information on the weighted estimates, refer to the “Weights” section in the User Guide of the Form 5500 Private Pension Research File."]
["*/ Less than 0.05 percent."]
["**/ Less than $500,000."]
["- Missing or zero."]
["SOURCE: Form 5500 filings for plan years ending in 2018."]

{"sheet":"35","index":32,"n_rows":40,"n_cols":4,"rows_kept":40,"cut":false,"hidden":false,"merged":[[0,0,0,3],[1,0,1,3],[2,0,2,3]]}
["Table C8. Income Statement of Pension Plans With 100 or More Participants"]
["by type of plan, 2018"]
["(millions)"]
[]
["Income and Expenses","Total","Defined Benefit","Defined Contribution"]
["Income"]
["Contributions Received or Receivable From: "]
["   Employers",245490,89131,156359]
["   Participants",252916,639,252277]
["   Others (Including Rollovers)",47886,381,47505]
["   Noncash Contributions",1374,108,1265]
["Total Contributions",547665,90259,457406]
["Interest Earnings:"]
["   Interest-Bearing Cash",1732,701,1031]
["   U.S. Government Securities",3851,3115,736]
["   Corporate Debt Instruments",10585,9734,852]
["   Non-Participant Loans",127,62,65]
["   Participant Loans",3462,3,3459]
["   Other or Unspecified Interest",10431,3472,6959]
["Total Interest Earnings",30189,17086,13102]
["Dividends:"]
["   Preferred Stock",784,102,682]
["   Common Stock",13067,5451,7616]
["   Registered Investment Company Shares (e.g., Mutual Funds)",103595,6436,97159]
["Total Dividend Income",117446,11989,105458]
["Rents",273,255,18]
["Net Gain (Loss) on Sale of Assets",13851,8716,5134]
["Unrealized Appreciation (Depreciation):"]
["   Unrealized Appreciation of Real Estate",-403,-46,-357]
["   Other Unrealized Appreciation",-59775,-38046,-21730]
["Total Unrealized Appreciation (Depreciation)",-60179,-38091,-22087]
["Net Investment Gain (Loss) From:"]
["   Common/Collective Trusts",-54849,-6074,-48775]
["   Pooled Separate Accounts",-7976,-760,-7216]
["   Master Trusts",-94286,-43071,-51216]
["   103-12 Investment Entities",-3427,-2871,-556]
["   Registered Investment Companies",-229268,-12102,-217166]
["Other or Unspecified Income",-1162,1853,-3015]
["Total Income",258277,27189,231088]
[null,null,null," (continued...) "]

{"sheet":"36","index":33,"n_rows":32,"n_cols":4,"rows_kept":32,"cut":false,"hidden":false,"merged":[[31,0,31,3],[0,0,0,3],[1,0,1,3],[2,0,2,3],[26,0,26,3],[29,0,29,3],[30,0,30,3],[25,0,25,3],[28,0,28,3],[27,0,27,3]]}
["Table C8. Income Statement of Pension Plans With 100 or More Participants"]
["by type of plan, 2018"]
["(millions)"]
[]
["Income and Expenses","Total","Defined Benefit","Defined Contribution"]
["Expenses"]
["Benefit Payments and Payments to Provide"]
["   Benefits:"]
["   Direct Benefit Payments",649738,206647,443092]
["   Payments to Insurance Carriers for Benefits",16393,15125,1269]
["   Other or Unspecified Benefits",10592,5691,4901]
["Total Benefit Payments",676724,227463,449261]
["Interest Expense",738,37,701]
["Corrective Distributions",641,1,641]
["Deemed Distribution of Participant Loans",813,"**/",813]
["Administrative Expenses:"]
["   Professional Fees",2327,1744,583]
["   Contract Administrator Fees",2246,920,1326]
["   Investment Advisory and Management Fees",6103,4529,1574]
["   Other or Unspecified Admin. Expenses",8002,5744,2258]
["Total Administrative Expenses",18678,12937,5742]
["Unspecified Expenses",53,2,52]
["Total Expenses",697647,240439,457209]
[]
["Net Income",-439370,-213249,-226121]
[]
["NOTES: Some totals do not equal the sum of the components due to rounding. "]
["Pension plan statistics are weighted to estimate the impact of delinquent filers. This may result in non-integer plan counts and associated statistics in the underlying data. For more information on the weighted estimates, refer to the “Weights” section in the User Guide of the Form 5500 Private Pension Research File."]
["*/ Fewer than 500 participants."]
["**/ Less than $500,000."]
["- Missing or zero."]
["SOURCE: Form 5500 filings for plan years ending in 2018."]

{"sheet":"37","index":34,"n_rows":41,"n_cols":4,"rows_kept":41,"cut":false,"hidden":false,"merged":[[0,0,0,3],[1,0,1,3],[2,0,2,3],[3,0,3,3]]}
["Table C9(a). Income Statement of Single-Employer Pension Plans "]
["with 100 or More Participants "]
["by type of plan, 2018"]
["(millions)"]
[]
["Income and Expenses","Total","Defined Benefit","Defined Contribution"]
["Income"]
["Contributions Received or Receivable From:"]
["   Employers",190932,52122,138810]
["   Participants",237030,367,236663]
["   Others (Including Rollovers)",44793,117,44676]
["   Noncash Contributions",1169,108,1060]
["Total Contributions",473923,52714,421210]
["Interest Earnings:"]
["   Interest-Bearing Cash",1467,547,920]
["   U.S. Government Securities",2774,2305,469]
["   Corporate Debt Instruments",8576,8059,517]
["   Non-Participant Loans",90,33,58]
["   Participant Loans",3227,1,3226]
["   Other or Unspecified Interest",8445,2043,6402]
["Total Interest Earnings",24578,12987,11591]
["Dividends:"]
["   Preferred Stock",761,83,678]
["   Common Stock",10071,3039,7032]
["   Registered Investment Company Shares (e.g., Mutual Funds)",94104,4430,89674]
["Total Dividend Income",104937,7552,97385]
["Rents",74,65,10]
["Net Gain (Loss) on Sale of Assets",7954,3095,4858]
["Unrealized Appreciation (Depreciation):"]
["   Unrealized Appreciation of Real Estate",-726,-382,-345]
["   Other Unrealized Appreciation",-50871,-33357,-17514]
["Total Unrealized Appreciation (Depreciation)",-51598,-33739,-17859]
["Net Investment Gain (Loss) From:"]
["   Common/Collective Trusts",-52336,-7071,-45265]
["   Pooled Separate Accounts",-7765,-1062,-6703]
["   Master Trusts",-89321,-39865,-49456]
["   103-12 Investment Entities",-2990,-2555,-435]
["   Registered Investment Companies",-212648,-10230,-202418]
["Other or Unspecified Income",-2785,419,-3204]
["Total Income",192023,-17691,209714]
[null,null,null," (continued...) "]

{"sheet":"38","index":35,"n_rows":33,"n_cols":4,"rows_kept":33,"cut":false,"hidden":false,"merged":[[0,0,0,3],[1,0,1,3],[2,0,2,3],[3,0,3,3],[32,0,32,3],[26,0,26,3],[27,0,27,3],[30,0,30,3],[31,0,31,3],[29,0,29,3],[28,0,28,3]]}
["Table C9(a). Income Statement of Single-Employer Pension Plans "]
["with 100 or More Participants "]
["by type of plan, 2018"]
["(millions)"]
[]
["Income and Expenses","Total","Defined Benefit","Defined Contribution"]
["Expenses"]
["Benefit Payments and Payments to Provide"]
["   Benefits:"]
["   Direct Benefit Payments",563418,151994,411424]
["   Payments to Insurance Carriers for Benefits",16244,14986,1259]
["   Other or Unspecified Benefits",10231,5594,4637]
["Total Benefit Payments",589894,172575,417320]
["Interest Expense",701,2,700]
["Corrective Distributions",594,1,594]
["Deemed Distribution of Participant Loans",693,"-",693]
["Administrative Expenses:"]
["   Professional Fees",1770,1300,470]
["   Contract Administrator Fees",1705,602,1102]
["   Investment Advisory and Management Fees",3666,2415,1251]
["   Other or Unspecified Admin. Expenses",6044,4049,1994]
["Total Administrative Expenses",13185,8367,4818]
["Unspecified Expenses",53,2,51]
["Total Expenses",605120,180945,424175]
[]
["Net Income",-413097,-198635,-214461]
[]
["NOTES: Some totals do not equal the sum of the components due to rounding. "]
["Pension plan statistics are weighted to estimate the impact of delinquent filers. This may result in non-integer plan counts and associated statistics in the underlying data. For more information on the weighted estimates, refer to the “Weights” section in the User Guide of the Form 5500 Private Pension Research File."]
["*/ Fewer than 500 participants."]
["**/ Less than $500,000."]
["- Missing or zero."]
["SOURCE: Form 5500 filings for plan years ending in 2018."]

{"sheet":"39","index":36,"n_rows":41,"n_cols":4,"rows_kept":41,"cut":false,"hidden":false,"merged":[[0,0,0,3],[1,0,1,3],[2,0,2,3],[3,0,3,3]]}
["Table C9(b). Income Statement of Multiemployer Pension Plans "]
["with 100 or More Participants "]
["by type of plan, 2018"]
["(millions)"]
[]
["Income and Expenses","Total","Defined Benefit","Defined Contribution"]
["Income "]
["Contributions Received or Receivable From:"]
["   Employers",42030,32284,9747]
["   Participants",1699,35,1664]
["   Others (Including Rollovers)",418,255,163]
["   Noncash Contributions","**/","**/","**/"]
["Total Contributions",44147,32574,11573]
["Interest Earnings:",null," "," "]
["   Interest-Bearing Cash",190,140,50]
["   U.S. Government Securities",981,738,244]
["   Corporate Debt Instruments",1672,1373,298]
["   Non-Participant Loans",27,27,"**/"]
["   Participant Loans",47,2,45]
["   Other or Unspecified Interest",1706,1362,344]
["Total Interest Earnings",4623,3641,982]
["Dividends:",null," "," "]
["   Preferred Stock",17,15,3]
["   Common Stock",2448,2238,209]
["   Registered Investment Company Shares (e.g., Mutual Funds)",4198,1854,2344]
["Total Dividend Income",6663,4107,2556]
["Rents",193,190,3]
["Net Gain (Loss) on Sale of Assets",6085,5544,541]
["Unrealized Appreciation (Depreciation):",null," "," "]
["   Unrealized Appreciation of Real Estate",340,354,-14]
["   Other Unrealized Appreciation",-4624,-3472,-1152]
["Total Unrealized Appreciation (Depreciation)",-4284,-3118,-1166]
["Net Investment Gain (Loss) From:"]
["   Common/Collective Trusts",1013,1028,-16]
["   Pooled Separate Accounts",513,359,154]
["   Master Trusts",227,-17,244]
["   103-12 Investment Entities",-88,31,-119]
["   Registered Investment Companies",-4537,-1639,-2897]
["Other or Unspecified Income",1509,1395,114]
["Total Income",56065,44094,11971]
[null,null,null," (continued...) "]

{"sheet":"40","index":37,"n_rows":33,"n_cols":4,"rows_kept":33,"cut":false,"hidden":false,"merged":[[0,0,0,3],[1,0,1,3],[2,0,2,3],[3,0,3,3],[32,0,32,3],[26,0,26,3],[27,0,27,3],[30,0,30,3],[31,0,31,3],[29,0,29,3],[28,0,28,3]]}
["Table C9(b). Income Statement of Multiemployer Pension Plans "]
["with 100 or More Participants"]
["by type of plan, 2018"]
["(millions)"]
[]
["Income and Expenses","Total","Defined Benefit","Defined Contribution"]
["Expenses"]
["Benefit Payments and Payments to Provide"]
["   Benefits:"]
["   Direct Benefit Payments",53091,44508,8582]
["   Payments to Insurance Carriers for Benefits",28,25,2]
["   Other or Unspecified Benefits",76,59,17]
["Total Benefit Payments",53194,44593,8602]
["Interest Expense",36,35,"**/"]
["Corrective Distributions",9,"-",9]
["Deemed Distribution of Participant Loans",76,"-",76]
["Administrative Expenses:"," "," "," "]
["   Professional Fees",471,389,81]
["   Contract Administrator Fees",392,299,93]
["   Investment Advisory and Management Fees",2191,1966,225]
["   Other or Unspecified Admin. Expenses",1277,1131,146]
["Total Administrative Expenses",4331,3786,545]
["Unspecified Expenses","**/","-","**/"]
["Total Expenses",57647,48414,9232]
[null," "," "," "]
["Net Income",-1581,-4320,2739]
[]
["NOTES: Some totals do not equal the sum of the components due to rounding. "]
["Pension plan statistics are weighted to estimate the impact of delinquent filers. This may result in non-integer plan counts and associated statistics in the underlying data. For more information on the weighted estimates, refer to the “Weights” section in the User Guide of the Form 5500 Private Pension Research File."]
["*/ Fewer than 500 participants."]
["**/ Less than $500,000."]
["- Missing or zero."]
["SOURCE: Form 5500 filings for plan years ending in 2018."]

{"sheet":"41","index":38,"n_rows":41,"n_cols":4,"rows_kept":41,"cut":false,"hidden":false,"merged":[[0,0,0,3],[1,0,1,3],[2,0,2,3],[3,0,3,3]]}
["Table C9(c). Income Statement of Multiple−Employer Pension Plans "]
["with 100 or More Participants "]
["by type of plan, 2018"]
["(millions)"]
[]
["Income and Expenses","Total","Defined Benefit","Defined Contribution"]
["Income "]
["Contributions Received or Receivable From:"]
["   Employers",12528,4726,7802]
["   Participants",14187,237,13950]
["   Others (Including Rollovers)",2674,9,2665]
["   Noncash Contributions",205,"-",205]
["Total Contributions",29594,4972,24623]
["Interest Earnings:",null," "," "]
["   Interest-Bearing Cash",76,15,61]
["   U.S. Government Securities",96,73,23]
["   Corporate Debt Instruments",338,302,37]
["   Non-Participant Loans",10,2,7]
["   Participant Loans",188,"**/",188]
["   Other or Unspecified Interest",280,67,212]
["Total Interest Earnings",988,459,529]
["Dividends:",null," "," "]
["   Preferred Stock",6,5,1]
["   Common Stock",548,173,375]
["   Registered Investment Company Shares (e.g., Mutual Funds)",5293,152,5141]
["Total Dividend Income",5847,330,5517]
["Rents",6,"**/",6]
["Net Gain (Loss) on Sale of Assets",-188,77,-265]
["Unrealized Appreciation (Depreciation):",null," "," "]
["   Unrealized Appreciation of Real Estate",-17,-18,1]
["   Other Unrealized Appreciation",-4280,-1217,-3064]
["Total Unrealized Appreciation (Depreciation)",-4297,-1235,-3062]
["Net Investment Gain (Loss) From:"]
["   Common/Collective Trusts",-3526,-32,-3494]
["   Pooled Separate Accounts",-724,-56,-668]
["   Master Trusts",-5192,-3188,-2004]
["   103-12 Investment Entities",-350,-347,-2]
["   Registered Investment Companies",-12083,-233,-11851]
["Other or Unspecified Income",114,40,75]
["Total Income",10188,786,9402]
[null,null,null," (continued...) "]

{"sheet":"42","index":39,"n_rows":33,"n_cols":4,"rows_kept":33,"cut":false,"hidden":false,"merged":[[32,0,32,3],[0,0,0,3],[1,0,1,3],[2,0,2,3],[3,0,3,3],[26,0,26,3],[27,0,27,3],[29,0,29,3],[30,0,30,3],[31,0,31,3],[28,0,28,3]]}
["Table C9(c). Income Statement of Multiple-Employer Pension Plans "]
["with 100 or More Participants"]
["by type of plan, 2018"]
["(millions)"]
[]
["Income and Expenses","Total","Defined Benefit","Defined Contribution"]
["Expenses"]
["Benefit Payments and Payments to Provide"]
["   Benefits:"]
["   Direct Benefit Payments",33229,10144,23085]
["   Payments to Insurance Carriers for Benefits",121,114,8]
["   Other or Unspecified Benefits",285,38,247]
["Total Benefit Payments",33635,10295,23340]
["Interest Expense",1,"**/",1]
["Corrective Distributions",37,"-",37]
["Deemed Distribution of Participant Loans",44,"**/",44]
["Administrative Expenses:"," "," "," "]
["   Professional Fees",86,55,31]
["   Contract Administrator Fees",150,19,131]
["   Investment Advisory and Management Fees",245,147,98]
["   Other or Unspecified Admin. Expenses",681,563,118]
["Total Administrative Expenses",1162,784,378]
["Unspecified Expenses",1,"-",1]
["Total Expenses",34881,11080,23801]
[null," "," "," "]
["Net Income",-24692,-10294,-14399]
[]
["NOTES: Some totals do not equal the sum of the components due to rounding. "]
["Pension plan statistics are weighted to estimate the impact of delinquent filers. This may result in non-integer plan counts and associated statistics in the underlying data. For more information on the weighted estimates, refer to the “Weights” section in the User Guide of the Form 5500 Private Pension Research File."]
["*/ Fewer than 500 participants."]
["**/ Less than $500,000."]
["- Missing or zero."]
["SOURCE: Form 5500 filings for plan years ending in 2018."]

{"sheet":"43","index":40,"n_rows":36,"n_cols":7,"rows_kept":36,"cut":false,"hidden":false,"merged":[[0,0,0,6],[1,0,1,6],[2,0,2,6],[35,0,35,6],[29,0,29,6],[28,0,28,6],[32,0,32,6],[33,0,33,3],[34,0,34,3],[30,0,30,6],[31,0,31,6]]}
["Table C10. Percentage Distribution of Income of Defined Benefit Plans "]
["with 100 or More Participants"]
["by source of income and amount of assets, 2018"]
[]
["Type of Income","Total","$1-0.9M","$1.0M-9.9M","$10.0M-249.9M","$250.0M-999.9M","$1.0B or More"]
[]
["Total Income",1,1,1,1,1,1]
[]
["Employer Contributions",327.8,61.4,110.9,186.5,232,504.2]
["Participant Contributions",2.4,"*/",0.9,0.9,1.4,4.0999999999999996]
["Other or Unspecified Contributions",1.8,27.1,8.9,1.3,1.8,1.7]
["Total Contributions",331.9,88.6,120.7,188.7,235.2,510]
["Interest on Interest-Bearing Cash",2.6,0.3,1.3,2,3.1,2.7]
["Interest on U.S. Government Securities",11.5,"*/",0.6,2.8,5.2,22.4]
["Interest on Corporate Debt Instruments",35.799999999999997,"*/",1.9,6.8,15.1,72.099999999999994]
["Interest on Non-Participant Loans",0.2,"-","-","*/",0.2,0.4]
["Interest on Participant Loans","*/","-","*/","*/","*/","*/"]
["Other or Unspecified Interest",12.8,0.7,1.8,3.9,8.1,22.7]
["Total Interest Earnings",62.8,1,5.6,15.6,31.8,120.3]
["Total Dividends Income",44.1,6.4,22.5,41.9,35.200000000000003,53]
["Net Gain (Loss) on Sale of Assets",32.1,0.2,6.1,18.100000000000001,36.4,40.1]
["Total Unrealized Appreciation (Depreciation)",-140.1,-0.1,-15.4,-48.6,-88,-246.5]
["Net Invest. Gain (Loss) from Common/Col. Trusts",-22.3,0.6,-0.7,-12.9,-25.7,-27.7]
["Net Invest. Gain (Loss) From Pooled Sep. Accounts",-2.8,0.7,-3.2,-3.8,-1.8,-2.8]
["Net Invest. Gain (Loss) From Master Trusts",-158.4,-0.1,-6.5,-35.1,-79,-307.39999999999998]
["Net Invest. Gain (Loss) from 103-12 Invest. Entities",-10.6,"-",-0.2,-2.9,-5.6,-19.899999999999999]
["Net Invest. Gain (Loss) From Registered Invest. Co.",-44.5,-25.4,-33.299999999999997,-59.3,-42.3,-36.299999999999997]
["Other or Unspecified Income",7.8,28.2,4.5,-1.8,4,17.100000000000001]
[]
["NOTES: The letters M and B in the column headings denote millions and billions, respectively."]
["Percentage distributions do not sum to 100 percent due to rounding."]
["Pension plan statistics are weighted to estimate the impact of delinquent filers. This may result in non-integer plan counts and associated statistics in the underlying data. For more information on the weighted estimates, refer to the “Weights” section in the User Guide of the Form 5500 Private Pension Research File."]
["*/ Less than 0.05 percent."]
["**/ Less than $500,000."]
["- Missing or zero."]
["SOURCE: Form 5500 filings for plan years ending in 2018."]

{"sheet":"44","index":41,"n_rows":36,"n_cols":7,"rows_kept":36,"cut":false,"hidden":false,"merged":[[35,0,35,6],[32,0,32,6],[28,0,28,6],[29,0,29,6],[30,0,30,6],[31,0,31,6],[0,0,0,6],[1,0,1,6],[2,0,2,6],[33,0,33,3],[34,0,34,3]]}
["Table C11. Percentage Distribution of Income of Defined Contribution Plans "]
["with 100 or More Participants"]
["by source of income and amount of assets, 2018"]
[]
["Type of Income","Total","$1-0.9M","$1.0M-9.9M","$10.0M-249.9M ","$250.0M-999.9M","$1.0B or More"]
[]
["Total Income",1,1,1,1,1,1]
[]
["Employer Contributions",67.7,30.4,39.299999999999997,53.7,66,91.4]
["Participant Contributions",109.2,80,89.2,87.9,95.4,146.69999999999999]
["Other or Unspecified Contributions",21.1,16.3,17.8,20,20.9,23.3]
["Total Contributions",197.9,126.7,146.4,161.6,182.3,261.39999999999998]
["Interest on Interest-Bearing Cash",0.4,0.1,0.2,0.4,0.5,0.6]
["Interest on U.S. Government Securities",0.3,"*/","*/",0.1,0.1,0.8]
["Interest on Corporate Debt Instruments",0.4,"*/","*/",0.1,0.2,0.8]
["Interest on Non-Participant Loans","*/","*/","*/","*/","*/",0.1]
["Interest on Participant Loans",1.5,0.2,0.7,1.1000000000000001,1.4,2.2999999999999998]
["Other or Unspecified Interest",3,0.4,0.6,2.2999999999999998,3.4,4.2]
["Total Interest Earnings",5.7,0.6,1.6,3.9,5.6,8.6999999999999993]
["Total Dividends Income",45.6,5.5,20.5,48.1,54.4,44.1]
["Net Gain (Loss) on Sale of Assets",2.2000000000000002,0.4,0.5,1.1000000000000001,1.5,4.4000000000000004]
["Total Unrealized Appreciation (Depreciation)",-9.6,-9.9,-2.4,1.9,-0.9,-29.5]
["Net Invest. Gain (Loss) from Common/Col. Trusts",-21.1,-0.6,-2.2000000000000002,-4.4000000000000004,-15.6,-47.8]
["Net Invest. Gain (Loss) From Pooled Sep. Accounts",-3.1,-3,-8.6999999999999993,-4.2,-1.4,-1.7]
["Net Invest. Gain (Loss) From Master Trusts",-22.2,"*/","*/",-1.8,-8.3000000000000007,-59]
["Net Invest. Gain (Loss) from 103-12 Invest. Entities",-0.2,-0.2,-0.1,-0.1,-0.2,-0.4]
["Net Invest. Gain (Loss) From Registered Invest. Co.",-94,-11.8,-47.6,-105.1,-118.1,-78.8]
["Other or Unspecified Income",-1.3,-7.7,-7.9,-0.8,0.6,-1.3]
[]
["NOTES: The letters M and B in the column headings denote millions and billions, respectively."]
["Percentage distributions do not sum to 100 percent due to rounding."]
["Pension plan statistics are weighted to estimate the impact of delinquent filers. This may result in non-integer plan counts and associated statistics in the underlying data. For more information on the weighted estimates, refer to the “Weights” section in the User Guide of the Form 5500 Private Pension Research File."]
["*/ Less than 0.05 percent."]
["**/ Less than $500,000."]
["- Missing or zero."]
["SOURCE: Form 5500 filings for plan years ending in 2018."]

{"sheet":"45","index":42,"n_rows":32,"n_cols":7,"rows_kept":32,"cut":false,"hidden":false,"merged":[[21,0,21,6],[27,0,27,6],[24,0,24,6],[22,0,22,6],[0,0,0,6],[1,0,1,6],[2,0,2,6],[4,0,5,0],[4,1,4,2],[4,3,4,4],[4,5,4,6],[26,0,26,6],[28,0,28,6],[29,0,29,6],[30,0,30,6],[31,0,31,6],[23,0,23,6],[25,0,25,6]]}
["Table C12. Percentage of Defined Benefit Plans, Active Participants, and Assets "]
["Affected by the Suspension of Benefit Accruals "]
["by number of participants, 2018"]
[]
["Total Participants ","Number of Plans",null,"Number of Active Participants (thousands) 1",null,"Total Assets (millions)"]
[null,"Total","Percent Frozen","Total","Percent In Frozen Plans","Total","Percent In Frozen Plans"]
["Total",46869,0.18899999999999997,13073,0.124,2968452,0.182]
["None or Not Reported",3068,47.9,"-","-",752,23.4]
["2-9",22493,10.4,90,8.3000000000000007,23819,11.7]
["10-24",8425,12,99,8.6999999999999993,11805,12.5]
["25-49",3057,21.1,71,13,7438,20.100000000000001]
["50-99",2099,35,79,19.899999999999999,10789,29.8]
["100-249",2043,41.2,135,25.9,30607,30.8]
["250-499",1363,41.3,176,27.9,41396,30.4]
["500-999",1222,35.700000000000003,301,23.1,72306,25.9]
["1,000-2,499",1334,30.9,749,20,183872,23.1]
["2,500-4,999",740,27.7,959,19.100000000000001,233520,22.1]
["5,000-9,999",419,24.8,1058,18.399999999999999,263401,19.7]
["10,000-19,999",288,18.899999999999999,1560,10.4,369941,16.8]
["20,000-49,999",215,22.4,2476,13.6,618435,21.4]
["50,000 or More",103,10.7,5320,7.5,1100372,13.6]
[]
["NOTES: Total asset amounts shown do not include the value of allocated insurance contracts described in 29 C.F.R § 2520.104-44."]
["\"Suspension of Benefit Accruals\" refers to plans in which no participants accrue any new benefits regardless of continuing service or compensation."]
["Excludes \"one-participant plans.\""]
["Some totals do not equal the sum of the components due to rounding. "]
["Pension plan statistics are weighted to estimate the impact of delinquent filers. This may result in non-integer plan counts and associated statistics in the underlying data. For more information on the weighted estimates, refer to the “Weights” section in the User Guide of the Form 5500 Private Pension Research File."]
["1 The definition of active participants includes individuals who are eligible to elect to have the employer make payments to a 401(k) type plan (even if individuals are not contributing) and nonvested individuals who are earning or retaining credited service under the plan. For more information, please see the Instructions for Form 5500 at https://www.dol.gov/agencies/ebsa/employers-and-advisers/plan-administration-and- compliance/reporting-and-filing/form-5500."]
["*/ Fewer than 500 participants."]
["**/ Less than $500,000."]
["- Missing or zero."]
["SOURCE: Form 5500 filings for plan years ending in 2018."]

{"sheet":"46","index":43,"n_rows":33,"n_cols":7,"rows_kept":33,"cut":false,"hidden":false,"merged":[[0,0,0,6],[1,0,1,6],[2,0,2,6],[4,0,5,0],[4,1,4,2],[4,3,4,4],[4,5,4,6],[20,0,20,6],[32,0,32,6],[27,0,27,6],[21,0,21,6],[22,0,22,6],[28,0,28,6],[29,0,29,6],[30,0,30,6],[31,0,31,6],[24,0,24,6],[23,0,23,6],[25,0,25,6],[26,0,26,6]]}
["Table C13. Percentage of Defined Benefit Plans, Active Participants, and Assets "]
["Affected by the Suspension of Benefit Accruals "]
["by industry, 2018"]
[]
["Industry","Number of Plans",null,"Number of Active Participants (thousands) 1",null,"Total Assets (millions)"]
[null,"Total","Percent Frozen","Total","Percent In Frozen Plans","Total","Percent In Frozen Plans"]
["Total",46869,0.18899999999999997,13073,0.124,2968452,0.182]
["Agriculture",503,24.4,38,19.8,5917,27.800000000000004]
["Mining",265,30.4,69,15.8,20423,24.4]
["Utilities",351,13.699999999999998,400,1.3,172108,3.6000000000000005]
["Construction",2876,11.8,1384,0.6,208113,0.90000000000000013]
["Manufacturing",5222,37.5,2584,18.399999999999999,1077215,19.100000000000001]
["Wholesale Trade",2492,20.2,207,29.2,44235,32.6]
["Retail Trade",1640,19.600000000000001,990,3.4000000000000004,63562,6.9]
["Transportation",747,25.3,1070,10.4,213241,16]
["Information",793,30.5,628,10.9,161554,14.6]
["Finance, Insurance, and Real Estate",5683,19.100000000000001,2106,11.4,434472,18.100000000000001]
["Services",25563,14.400000000000002,3088,18.899999999999999,530256,29.799999999999997]
["Misc. Organizations 2",727,41.1,509,3,36966,15.7]
["Industry Not Reported",8,12.5,1,98.4,390,98.4]
[]
["NOTES: Industry classifications are consistent with definitions of principal business activity listed in the 2018 Form 5500 Instructions. These principal business activity codes are based on the North American Industry Classification System."]
["Total asset amounts shown do not include the value of allocated insurance contracts described in 29 C.F.R § 2520.104-44."]
["\"Suspension of Benefit Accruals\" refers to plans in which no participants accrue any new benefits regardless of continuing service or compensation."]
["Excludes \"one-participant plans.\""]
["Some totals do not equal the sum of the components due to rounding. "]
["Pension plan statistics are weighted to estimate the impact of delinquent filers. This may result in non-integer plan counts and associated statistics in the underlying data. For more information on the weighted estimates, refer to the “Weights” section in the User Guide of the Form 5500 Private Pension Research File."]
["1 The definition of active participants includes individuals who are eligible to elect to have the employer make payments to a 401(k) type plan (even if individuals are not contributing) and nonvested individuals who are earning or retaining credited service under the plan. For more information, please see the Instructions for Form 5500 at https://www.dol.gov/agencies/ebsa/employers-and-advisers/plan-administration-and- compliance/reporting-and-filing/form-5500."]
["2 Religious, grantmaking, civic, professional, labor, and similar organizations."]
["*/ Fewer than 500 participants."]
["**/ Less than $500,000."]
["- Missing or zero."]
["SOURCE: Form 5500 filings for plan years ending in 2018."]

{"sheet":"47","index":44,"n_rows":23,"n_cols":5,"rows_kept":23,"cut":false,"hidden":false,"merged":[[0,0,0,4],[1,0,1,4],[2,0,2,4]]}
["Table D1. Balance Sheet of Defined Contribution Plans with 100 or More Participants"]
["by type of plan, 2018"]
[" (millions)"]
[]
["Type of Asset or Liability","Total Defined Contribution Plans","401(k) Type","403(b) ","Other Defined Contribution Plans"]
["Assets"]
["Total Noninterest-Bearing Cash",5630,4014,836,780]
["Employer Contrib. Receivable",33900,26934,1217,5749]
["Participant Contrib. Receivable",2035,1774,184,77]
["Other Receivables",23754,19016,3773,965]
["Interest-Bearing Cash",46844,39194,2568,5082]
["U.S. Government Securities",34373,24642,9,9722]
["Corporate Debt Instruments: Preferred",6469,4279,"-",2190]
["Corporate Debt Instruments: All Other",22029,15030,3,6996]
["Preferred Stock",478,325,"**/",153]
["Common Stock",90329,76444,18,13866]
["Partnership/Joint Venture Interests",6392,1815,3,4575]
["Real Estate (Other Than Employer Real Prop.)",673,193,1,479]
["Loans (Other Than to Participants)",989,861,5,123]
["Participant Loans",75735,71178,3285,1272]
["Assets in Common/Collective Trusts",1103899,1056195,894,46809]
["Assets in Pooled Separate Accounts",137676,114475,14489,8713]
[null,null,null,null," (continued...) "]

{"sheet":"48","index":45,"n_rows":34,"n_cols":5,"rows_kept":34,"cut":false,"hidden":false,"merged":[[0,0,0,4],[1,0,1,4],[2,0,2,4],[25,0,25,4],[33,0,33,4],[27,0,27,4],[26,0,26,4],[28,0,28,4],[29,0,29,4]]}
["Table D1. Balance Sheet of Defined Contribution Plans with 100 or More Participants"]
["by type of plan, 2018"]
[" (millions)"]
[]
["Type of Asset or Liability","Total Defined Contribution Plans","401(k) Type","403(b)","Other Defined Contribution Plans"]
[]
["Assets in Master Trusts",1007684,957715,7868,42102]
["Assets in 103-12 Investment Entities",6956,2905,3,4048]
["Assets in Registered Investment Comp.",2219372,1744462,362040,112870]
["Assets in Ins. Co. General Accounts",185279,76308,91648,17323]
["Other General Investments",99090,84154,8137,6800]
["Employer Securities",294198,165860,"-",128338]
["Employer Real Property",92,24,"-",67]
["Buildings and Other Prop. Used by Plan",20,11,"-",9]
["Other or Unspecified Assets",60025,54419,3757,1849]
["Total Assets",5463921,4542226,500737,420957]
[]
["Liabilities"]
["Benefit Claims Payable",925,620,2,303]
["Operating Payables",1927,1761,4,162]
["Acquisition Indebtedness",11952,240,"**/",11712]
["Other Liabilities",15411,6890,33,8488]
["Total Liabilities",30216,9511,39,20665]
[]
["Net Assets",5433705,4532715,500698,400292]
[]
["NOTES: An annuity arrangement under Code section 403(b)(1) and custodial account arrangement under Code section 403(b)(7) are grouped under the category of 403(b). These numbers may not represent all 403(b) plans because those 403(b) plans that are not established or maintained by an employer as described in DOL Regulation 29 C.F.R § 2510.3-2(f) are exempt from filing a Form 5500/5500-SF. These data include only 403(b) plans that file the Form 5500 or Form 5500-SF. Additional information on 403(b) filing requirements can be found in Field Assistance Bulletins 2009-02 and 2010-01. Approximately 0.05% of individual account plans indicate both 401(k) and 403(b) plan characteristics. For purposes of this report, they are classified as 401(k) type plans."]
["Total asset amounts shown do not include the value of allocated insurance contracts described in 29 C.F.R § 2520.104-44."]
["Some totals do not equal the sum of the components due to rounding. "]
["Pension plan statistics are weighted to estimate the impact of delinquent filers. This may result in non-integer plan counts and associated statistics in the underlying data. For more information on the weighted estimates, refer to the “Weights” section in the User Guide of the Form 5500 Private Pension Research File."]
["*/ Fewer than 500 participants."]
["**/ Less than $500,000."]
["- Missing or zero."]
["SOURCE: Form 5500 filings for plan years ending in 2018."]

{"sheet":"49","index":46,"n_rows":40,"n_cols":5,"rows_kept":40,"cut":false,"hidden":false,"merged":[[0,0,0,4],[1,0,1,4],[2,0,2,4]]}
["Table D2. Income Statement of Defined Contribution Plans with 100 or More Participants"]
["by type of plan, 2018"]
[" (millions)"]
[]
["Income and Expenses","Total Defined Contribution Plans","401(k) Type","403(b)","Other Defined Contribution Plans"]
["Income"]
["Contributions Received or Receivable From: "]
["   Employers",156359,124814,11401,20143]
["   Participants",252277,229076,21425,1777]
["   Others (Including Rollovers)",47505,41991,4997,516]
["   Noncash Contributions",1265,491,"**/",774]
["Total Contributions",457406,396372,37823,23210]
["Interest Earnings:"]
["   Interest-Bearing Cash",1031,823,89,120]
["   U.S. Government Securities",736,545,3,188]
["   Corporate Debt Instruments",852,538,"**/",313]
["   Non-Participant Loans",65,58,"**/",7]
["   Participant Loans",3459,3260,147,52]
["   Other or Unspecified Interest",6959,3101,3051,807]
["Total Interest Earnings",13102,8325,3290,1487]
["Dividends:"]
["   Preferred Stock",682,335,6,341]
["   Common Stock",7616,5865,50,1701]
["   Registered Investment Company Shares (e.g., Mutual \n   Funds)",97159,80946,11891,4323]
["Total Dividend Income",105458,87146,11947,6365]
["Rents",18,5,"-",13]
["Net Gain (Loss) on Sale of Assets",5134,4053,35,1046]
["Unrealized Appreciation (Depreciation):"]
["   Unrealized Appreciation of Real Estate",-357,-364,-6,13]
["   Other Unrealized Appreciation",-21730,-27950,-455,6676]
["Total Unrealized Appreciation (Depreciation)",-22087,-28314,-462,6689]
["Net Investment Gain (Loss) From:"]
["   Common/Collective Trusts",-48775,-48213,-11,-551]
["   Pooled Separate Accounts",-7216,-7256,198,-159]
["   Master Trusts",-51216,-49610,-482,-1124]
["   103-12 Investment Entities",-556,-231,-124,-201]
["   Registered Investment Companies",-217166,-179816,-30253,-7097]
["Other or Unspecified Income",-3015,-4576,307,1254]
["Total Income",231088,177886,22269,30933]
[null,null,null,null,"(continued...)"]

{"sheet":"50","index":47,"n_rows":33,"n_cols":5,"rows_kept":33,"cut":false,"hidden":false,"merged":[[0,0,0,4],[1,0,1,4],[2,0,2,4],[25,0,25,4],[32,0,32,4],[26,0,26,4],[27,0,27,4],[28,0,28,4]]}
["Table D2. Income Statement of Defined Contribution Plans with 100 or More Participants"]
["by type of plan, 2018"]
[" (millions)"]
[]
["Income and Expenses","Total Defined Contribution Plans","401(k) Type","403(b)","Other Defined Contribution Plans"]
["Expenses"]
["Benefit Payments and Payments to Provide "]
["   Benefits:"]
["   Direct Benefit Payments",443092,384355,31955,26782]
["   Payments to Insurance Carriers for Benefits",1269,63,1029,177]
["   Other or Unspecified Benefits",4901,4104,500,297]
["Total Benefit Payments",449261,388522,33484,27255]
["Interest Expense",701,75,"**/",626]
["Corrective Distributions",641,622,7,12]
["Deemed Distribution of Participant Loans",813,698,77,38]
["Administrative Expenses:"]
["   Professional Fees",583,466,26,91]
["   Contract Administrator Fees",1326,1100,136,90]
["   Investment Advisory and Management Fees",1574,1252,65,256]
["   Other or Unspecified Admin. Expenses",2258,1953,148,158]
["Total Administrative Expenses",5742,4772,374,595]
["Unspecified Expenses",52,27,1,23]
["Total Expenses",457209,394717,33942,28549]
[]
["Net Income",-226121,-216831,-11673,2383]
[]
["NOTES: An annuity arrangement under Code section 403(b)(1) and custodial account arrangement under Code section 403(b)(7) are grouped under the category of 403(b). These numbers may not represent all 403(b) plans because those 403(b) plans that are not established or maintained by an employer as described in DOL Regulation 29 C.F.R § 2510.3-2(f) are exempt from filing a Form 5500/5500-SF. These data include only 403(b) plans that file the Form 5500 or Form 5500-SF. Additional information on 403(b) filing requirements can be found in Field Assistance Bulletins 2009-02 and 2010-01. Approximately 0.05% of individual account plans indicate both 401(k) and 403(b) plan characteristics. For purposes of this report, they are classified as 401(k) type plans."]
["Some totals do not equal the sum of the components due to rounding. "]
["Pension plan statistics are weighted to estimate the impact of delinquent filers. This may result in non-integer plan counts and associated statistics in the underlying data. For more information on the weighted estimates, refer to the “Weights” section in the User Guide of the Form 5500 Private Pension Research File."]
["*/ Fewer than 500 participants."]
["**/ Less than $500,000."]
["- Missing or zero."]
["SOURCE: Form 5500 filings for plan years ending in 2018."]

{"sheet":"51","index":48,"n_rows":28,"n_cols":4,"rows_kept":28,"cut":false,"hidden":false,"merged":[[27,0,27,3],[1,0,1,3],[0,0,0,3],[20,0,20,3],[21,0,21,3],[2,0,2,3],[22,0,22,3],[23,0,23,3]]}
["Table D3. Number of 401(k) Type Plans"]
["by number of participants and primary"]
["or supplemental status, 2018"]
[]
["Total Participants ","Total","401(k) is Only Plan Sponsored by Employer","Employer Sponsoring 401(k) Plan Also Sponsors Other Pension Plan(s)"]
["Total",588499,548974,39525]
["None or Not Reported",21048,19985,1063]
["2-9",189417,175872,13545]
["10-24",151973,142358,9615]
["25-49",91150,86202,4948]
["50-99",63644,60009,3635]
["100-249",39060,36436,2624]
["250-499",15085,13734,1351]
["500-999",7862,6985,877]
["1,000-2,499",5130,4374,756]
["2,500-4,999",1992,1582,409]
["5,000-9,999",1053,759,294]
["10,000-19,999",572,390,182]
["20,000-49,999",371,221,151]
["50,000 or More",143,67,75]
[]
["NOTES: Excludes \"one-participant plans.\""]
["Some totals do not equal the sum of the components due to rounding. "]
["Pension plan statistics are weighted to estimate the impact of delinquent filers. This may result in non-integer plan counts and associated statistics in the underlying data. For more information on the weighted estimates, refer to the “Weights” section in the User Guide of the Form 5500 Private Pension Research File."]
["*/ Fewer than 500 participants."]
["**/ Less than $500,000."]
["- Missing or zero."]
["SOURCE: Form 5500 filings for plan years ending in 2018."]

{"sheet":"52","index":49,"n_rows":29,"n_cols":4,"rows_kept":29,"cut":false,"hidden":false,"merged":[[28,0,28,3],[0,0,0,3],[1,0,1,3],[3,0,3,3],[20,0,20,3],[2,0,2,3],[21,0,21,3],[23,0,23,3],[22,0,22,3],[24,0,24,3]]}
["Table D4. Number of Active Participants in 401(k) Type Plans"]
["by number of participants and primary "]
["or supplemental status, 2018"]
["(thousands)"]
[]
["Total Participants ","Total","401(k) is Only Plan Sponsored by Employer","Employer Sponsoring 401(k) Plan Also Sponsors Other Pension Plan(s)"]
["Total",70335,51837,18499]
["2-9",840,782,58]
["10-24",1923,1811,112]
["25-49",2552,2421,131]
["50-99",3593,3397,197]
["100-249",4835,4511,324]
["250-499",4205,3829,376]
["500-999",4390,3902,488]
["1,000-2,499",6346,5426,920]
["2,500-4,999",5542,4435,1107]
["5,000-9,999",5747,4214,1533]
["10,000-19,999",6341,4385,1956]
["20,000-49,999",8993,5613,3379]
["50,000 or More",15028,7111,7917]
[]
["NOTES: Excludes \"one-participant plans.\""]
["Some totals do not equal the sum of the components due to rounding. "]
["The definition of active participants includes individuals who are eligible to elect to have the employer make payments to a 401(k) type plan (even if individuals are not contributing) and nonvested individuals who are earning or retaining credited service under the plan. For more information, please see the Instructions for Form 5500 at https://www.dol.gov/agencies/ebsa/employers-and-advisers/plan-administration-and- compliance/reporting-and-filing/form-5500."]
["Pension plan statistics are weighted to estimate the impact of delinquent filers. This may result in non-integer plan counts and associated statistics in the underlying data. For more information on the weighted estimates, refer to the “Weights” section in the User Guide of the Form 5500 Private Pension Research File."]
["*/ Fewer than 500 participants."]
["**/ Less than $500,000."]
["- Missing or zero."]
["SOURCE: Form 5500 filings for plan years ending in 2018."]

{"sheet":"53","index":50,"n_rows":29,"n_cols":9,"rows_kept":29,"cut":false,"hidden":false,"merged":[[28,0,28,8],[0,0,0,8],[1,0,1,8],[3,0,4,0],[22,0,22,8],[3,1,3,2],[3,3,3,4],[21,0,21,8],[25,0,25,8],[23,0,23,8],[3,5,3,6],[3,7,3,8],[24,0,24,8]]}
["Table D5. Number of Defined Contribution Plans and Active Participants "]
["by size of plan and extent of participant direction of investments, 2018"]
[]
["Size of Plan \n(Total Participants)","Total",null,"Participant Directs All Investments",null,"Participant Directs Investment of Portion Of Assets",null,"Participant Does Not Direct Any Investments"]
[null,"Number of Plans","Active Participants (thousands)","Number of Plans","Active Participants (thousands)","Number of Plans","Active Participants (thousands)","Number of Plans","Active Participants (thousands)"]
["Total",675007,83376,568457,74274,13518,3402,93033,5700]
["None or Not Reported",25799,"-",20118,"-",646,"-",5035,"-"]
["2-9",226163,977,174090,772,5636,22,46437,182]
["10-24",167488,2105,143958,1831,3025,36,20505,238]
["25-49",99812,2773,89138,2496,1723,45,8950,232]
["50-99",70992,3968,64166,3616,1090,58,5736,294]
["100-249",44834,5498,40951,5059,575,67,3308,371]
["250-499",18334,5025,16670,4601,241,63,1423,362]
["500-999",9820,5354,8932,4905,177,93,711,357]
["1,000-2,499",6475,7813,5834,7101,148,170,493,543]
["2,500-4,999",2540,6942,2211,6110,109,285,219,548]
["5,000-9,999",1360,7343,1199,6541,55,294,106,508]
["10,000-19,999",762,8277,659,7244,40,409,63,624]
["20,000-49,999",462,10946,396,9535,34,726,32,685]
["50,000 or More",167,16354,136,14463,18,1133,13,757]
[]
["NOTES: The definition of active participants includes individuals who are eligible to elect to have the employer make payments to a 401(k) type plan (even if individuals are not contributing) and nonvested individuals who are earning or retaining credited service under the plan. For more information, please see the Instructions for Form 5500 at https://www.dol.gov/agencies/ebsa/employers-and-advisers/plan-administration-and- compliance/reporting-and-filing/form-5500."]
["Excludes \"one-participant plans.\""]
["Some totals do not equal the sum of the components due to rounding. "]
["Pension plan statistics are weighted to estimate the impact of delinquent filers. This may result in non-integer plan counts and associated statistics in the underlying data. For more information on the weighted estimates, refer to the “Weights” section in the User Guide of the Form 5500 Private Pension Research File."]
["*/ Fewer than 500 participants."]
["**/ Less than $500,000."]
["- Missing or zero."]
["SOURCE: Form 5500 filings for plan years ending in 2018."]

{"sheet":"54","index":51,"n_rows":29,"n_cols":9,"rows_kept":29,"cut":false,"hidden":false,"merged":[[3,7,3,8],[28,0,28,8],[3,0,4,0],[0,0,0,8],[1,0,1,8],[21,0,21,8],[20,0,20,8],[25,0,25,8],[3,1,3,2],[3,3,3,4],[22,0,22,8],[23,0,23,8],[3,5,3,6],[24,0,24,8]]}
["Table D5(a). Number of non-401(k) Defined Contribution Plans and Active Participants "]
["by size of plan and extent of participant direction of investments, 2018"]
[]
["Size of Plan \n(Total Participants)","Total",null,"Participant Directs All Investments",null,"Participant Directs Investment of Portion Of Assets",null,"Participant Does Not Direct Any Investments"]
[null,"Number of Plans","Active Participants (thousands)","Number of Plans","Active Participants (thousands)","Number of Plans","Active Participants (thousands)","Number of Plans","Active Participants (thousands)"]
["Total",86508,13041,34438,8312,1283,367,50787,4362]
["None or Not Reported",4751,"-",1589,"-",80,"-",3082,"-"]
["2-9",36746,137,12942,47,593,2,23211,88]
["10-24",15515,182,5289,63,249,3,9977,115]
["25-49",8662,222,3241,83,117,3,5304,135]
["50-99",7348,375,3242,170,86,4,4020,200]
["100-249",5774,663,3108,366,40,5,2626,292]
["250-499",3249,820,2024,512,20,5,1205,303]
["500-999",1958,964,1310,643,38,19,610,302]
["1,000-2,499",1346,1467,917,1008,20,23,408,437]
["2,500-4,999",548,1401,355,915,19,51,174,434]
["5,000-9,999",306,1596,218,1179,7,39,81,378]
["10,000-19,999",190,1936,131,1350,7,71,52,516]
["20,000-49,999",91,1953,59,1323,4,58,27,572]
["50,000 or More",24,1327,12,653,2,83,10,590]
[]
["NOTES: The definition of active participants includes individuals who are eligible to elect to have the employer make payments to a 401(k) type plan (even if individuals are not contributing) and nonvested individuals who are earning or retaining credited service under the plan. For more information, please see the Instructions for Form 5500 at https://www.dol.gov/agencies/ebsa/employers-and-advisers/plan-administration-and- compliance/reporting-and-filing/form-5500."]
["Excludes \"one-participant plans.\""]
["Some totals do not equal the sum of the components due to rounding. "]
["Pension plan statistics are weighted to estimate the impact of delinquent filers. This may result in non-integer plan counts and associated statistics in the underlying data. For more information on the weighted estimates, refer to the “Weights” section in the User Guide of the Form 5500 Private Pension Research File."]
["*/ Fewer than 500 participants."]
["**/ Less than $500,000."]
["- Missing or zero."]
["SOURCE: Form 5500 filings for plan years ending in 2018."]

{"sheet":"55","index":52,"n_rows":29,"n_cols":9,"rows_kept":29,"cut":false,"hidden":false,"merged":[[3,7,3,8],[28,0,28,8],[3,0,4,0],[0,0,0,8],[1,0,1,8],[21,0,21,8],[20,0,20,8],[25,0,25,8],[3,1,3,2],[3,3,3,4],[22,0,22,8],[23,0,23,8],[3,5,3,6],[24,0,24,8]]}
["Table D5(b). Number of 401(k) Type Plans and Active Participants "]
["by size of plan and extent of participant direction of investments, 2018 "]
[]
["Size of Plan \n(Total Participants)","Total",null,"Participant Directs All Investments",null,"Participant Directs Investment of Portion Of Assets",null,"Participant Does Not Direct Any Investments"]
[null,"Number of Plans","Active Participants (thousands)","Number of Plans","Active Participants (thousands)","Number of Plans","Active Participants (thousands)","Number of Plans","Active Participants (thousands)"]
["Total",588499,70335,534019,65962,12234,3034,42245,1338]
["None or Not Reported",21048,"-",18529,"-",566,"-",1953,"-"]
["2-9",189417,840,161147,725,5044,20,23226,95]
["10-24",151973,1923,138669,1768,2776,33,10528,122]
["25-49",91150,2552,85897,2413,1607,42,3646,97]
["50-99",63644,3593,60924,3447,1004,53,1716,93]
["100-249",39060,4835,37843,4693,535,62,682,80]
["250-499",15085,4205,14646,4088,220,58,218,59]
["500-999",7862,4390,7622,4262,139,74,101,54]
["1,000-2,499",5130,6346,4918,6093,127,148,85,106]
["2,500-4,999",1992,5542,1856,5195,90,233,45,113]
["5,000-9,999",1053,5747,981,5362,47,255,25,130]
["10,000-19,999",572,6341,527,5894,33,339,11,109]
["20,000-49,999",371,8993,336,8212,30,667,5,113]
["50,000 or More",143,15028,124,13810,16,1050,3,167]
[]
["NOTES: The definition of active participants includes individuals who are eligible to elect to have the employer make payments to a 401(k) type plan (even if individuals are not contributing) and nonvested individuals who are earning or retaining credited service under the plan. For more information, please see the Instructions for Form 5500 at https://www.dol.gov/agencies/ebsa/employers-and-advisers/plan-administration-and- compliance/reporting-and-filing/form-5500."]
["Excludes \"one-participant plans.\""]
["Some totals do not equal the sum of the components due to rounding. "]
["Pension plan statistics are weighted to estimate the impact of delinquent filers. This may result in non-integer plan counts and associated statistics in the underlying data. For more information on the weighted estimates, refer to the “Weights” section in the User Guide of the Form 5500 Private Pension Research File."]
["*/ Fewer than 500 participants."]
["**/ Less than $500,000."]
["- Missing or zero."]
["SOURCE: Form 5500 filings for plan years ending in 2018."]

{"sheet":"56","index":53,"n_rows":30,"n_cols":5,"rows_kept":30,"cut":false,"hidden":false,"merged":[[21,0,21,4],[29,0,29,4],[24,0,24,4],[25,0,25,4],[26,0,26,4],[22,0,22,4],[23,0,23,4],[0,0,0,4],[1,0,1,4],[2,0,2,4],[20,0,20,4],[19,0,19,4]]}
["Table D6. Balance Sheet of 401(k) Type Plans"]
["by extent of participant direction of investments, 2018"]
["(millions)"]
[]
["Type of Asset or Liability","Total","Participant Directs All Investments","Participant Directs Investment of Portion of Assets","Participant Does Not Direct Any Investments"]
[]
["Partnership/Joint Venture Interests",2880,1698,497,685]
["Employer Real Property",48,14,28,6]
["Real Estate (Other Than Employer Real Property)",1087,642,172,274]
["Employer Securities",171265,110414,56705,4146]
["Participant Loans",71969,64065,6648,1256]
["Loans (Other Than to Participants)",1444,1048,171,225]
["Other Investments 1",4347436,3835993,433363,78080]
["Form 5500-SF Assets 2",633065,569089,19400,44576]
["Total Assets",5229194,4582963,516983,129248]
[]
["Total Liabilities",20957,18181,2655,122]
[]
["Net Assets",5208237,4564782,514329,129127]
[]
["NOTES: Total asset amounts shown do not include the value of allocated insurance contracts described in 29 C.F.R § 2520.104-44."]
["Excludes \"one-participant plans.\""]
["Some totals do not equal the sum of the components due to rounding. "]
["Pension plan statistics are weighted to estimate the impact of delinquent filers. This may result in non-integer plan counts and associated statistics in the underlying data. For more information on the weighted estimates, refer to the “Weights” section in the User Guide of the Form 5500 Private Pension Research File."]
["1 \"Other investments\" primarily includes investments in readily tradeable securities, registered investment companies, common collective trusts, and pooled separate accounts. Tables C4-C5 summarize the more detailed Schedule H asset information for large plans."]
["2 The Form 5500-SF generally does not break out assets classes; therefore, all assets reported by Form 5500-SF filers are summarized on this line item."]
["*/ Fewer than 500 participants."]
["**/ Less than $500,000."]
["- Missing or zero."]
["SOURCE: Form 5500 filings for plan years ending in 2018."]

{"sheet":"57","index":54,"n_rows":32,"n_cols":5,"rows_kept":32,"cut":false,"hidden":false,"merged":[[0,0,0,4],[1,0,1,4],[2,0,2,4],[21,0,21,4],[31,0,31,4],[22,0,22,4],[26,0,26,4],[25,0,25,4],[27,0,27,4],[28,0,28,4],[23,0,23,4],[24,0,24,4]]}
["Table D7. Income Statement of 401(k) Type Plans"]
["by extent of participant direction of investments, 2018"]
["(millions)"]
[]
["Income and Expenses","Total","Participant Directs All Investments","Participant Directs Investment of Portion of Assets","Participant Does Not Direct Any Investments"]
["Income"]
["Employer Contributions",147298,132249,11424,3625]
["Participant Contributions",266594,242534,18414,5647]
["Contributions from Others (Including Rollovers)",50198,46456,2437,1305]
["Noncash Contributions",487,387,99,1]
["All Other Income 1",-251257,-222417,-24483,-4357]
["Total Income",213321,199208,7891,6222]
[]
["Expenses"]
["Total Benefit Payments",473790,414233,47306,12251]
["Certain Deemed and/or Corrective Distributions 2",1749,1647,72,29]
["Administrative Expenses 3",6519,5838,418,263]
["Other or Unspecified Expenses",373,246,84,43]
["Total Expenses",482431,421964,47881,12586]
[]
["Net Income",-269111,-222756,-39990,-6365]
[]
["NOTES: Excludes \"one-participant plans.\""]
["Some totals do not equal the sum of the components due to rounding. "]
["Pension plan statistics are weighted to estimate the impact of delinquent filers. This may result in non-integer plan counts and associated statistics in the underlying data. For more information on the weighted estimates, refer to the “Weights” section in the User Guide of the Form 5500 Private Pension Research File."]
["1 This table summarizes income and expenses that appear on the Schedule H (generally for plans with 100 or more participants), the Schedule I (generally for plans with fewer than 100 participants that file the Form 5500), and the Form 5500-SF. All income and expense items that appear on the more detailed Schedule H but not the Schedule I or Form 5500-SF (e.g., Interest earnings, Dividends, Rents, and several line items reporting realized or unrealized gains/losses on investments) are grouped under \"All Other Income\" or \"Other or Unspecified Expenses.\" Table D9 summarizes the more detailed Schedule H income information for large plans."]
["2 For plans filing Schedule H or Schedule I, this line item represents the combination of \"Corrective distributions\" and \"Certain deemed distributions of participant loans\" to be consistent with the Form 5500-SF line item \"Certain deemed and/or corrective distributions.\""]
["3 For Schedule H filers, \"Administrative Expenses\" is equal to the \"Total administrative expenses\" line item, while for Schedule I and Form 5500-SF filers, \"Administrative Expenses\" includes only the \"Administrative service providers\" line item."]
["*/ Fewer than 500 participants."]
["**/ Less than $500,000."]
["- Missing or zero."]
["SOURCE: Form 5500 filings for plan years ending in 2018."]

{"sheet":"58","index":55,"n_rows":23,"n_cols":5,"rows_kept":23,"cut":false,"hidden":false,"merged":[[0,0,0,4],[1,0,1,4],[2,0,2,4]]}
["Table D8. Balance Sheet of 401(k) Type Plans with 100 or More Participants"]
["by extent of participant direction of investments, 2018"]
["(millions)"]
[]
["Type of Asset or Liability","Total","Participant Directs All Investments","Participant Directs Investment of Portion of Assets","Participant Does Not Direct Any Investments"]
["Assets"]
["Total Noninterest-Bearing Cash",4014,3791,151,72]
["Employer Contrib. Receivable",26934,23155,3035,744]
["Participant Contrib. Receivable",1774,1645,101,28]
["Other Receivables",19016,18320,612,83]
["Interest-Bearing Cash",39194,34417,3617,1160]
["U.S. Government Securities",24642,22222,2038,382]
["Corporate Debt Instruments: Preferred",4279,3382,770,127]
["Corporate Debt Instruments: All Other",15030,12514,2225,291]
["Preferred Stock",325,238,46,41]
["Common Stock",76444,66961,7519,1964]
["Partnership/Joint Venture Interests",1815,1092,354,368]
["Real Estate (Other Than Employer Real Property)",193,90,62,41]
["Loans (Other Than to Participants)",861,780,70,12]
["Participant Loans",71178,63337,6621,1221]
["Assets in Common/Collective Trusts",1056195,920243,108477,27475]
["Assets in Pooled Separate Accounts",114475,108145,4410,1919]
[null,null,null,null," (continued...) "]

{"sheet":"59","index":56,"n_rows":32,"n_cols":5,"rows_kept":32,"cut":false,"hidden":false,"merged":[[0,0,0,4],[1,0,1,4],[2,0,2,4],[24,0,24,4],[31,0,31,4],[25,0,25,4],[28,0,28,4],[26,0,26,4],[27,0,27,4]]}
["Table D8. Balance Sheet of 401(k) Type Plans with 100 or More Participants"]
["by extent of participant direction of investments, 2018"]
["(millions)"]
[]
["Type of Asset or Liability","Total","Participant Directs All Investments","Participant Directs Investment of Portion of Assets","Participant Does Not Direct Any Investments"]
["Assets in Master Trusts",957715,778304,172857,6553]
["Assets in 103-12 Investment Entities",2905,2784,38,84]
["Assets in Registered Investment Comp.",1744462,1612051,103516,28895]
["Assets in Insurance Co. General Accounts",76308,70051,5221,1037]
["Other General Investments",84154,70202,13358,594]
["Employer Securities",165860,106486,55434,3939]
["Employer Real Property",24,1,24,"-"]
["Buildings and Other Property Used by Plan",11,2,8,"**/"]
["Other or Unspecified Assets",54419,52006,1079,1333]
["Total Assets",4542226,3972219,491645,78363]
[]
["Liabilities"]
["Benefit Claims Payable",620,519,87,14]
["Operating Payables",1761,1700,52,9]
["Acquisition Indebtedness",240,58,148,34]
["Other Liabilities",6890,4662,2205,24]
["Total Liabilities",9511,6938,2492,81]
[]
["Net Assets",4532715,3965280,489153,78282]
[]
["NOTES: Total asset amounts shown do not include the value of allocated insurance contracts described in 29 C.F.R § 2520.104-44."]
["Some totals do not equal the sum of the components due to rounding. "]
["Pension plan statistics are weighted to estimate the impact of delinquent filers. This may result in non-integer plan counts and associated statistics in the underlying data. For more information on the weighted estimates, refer to the “Weights” section in the User Guide of the Form 5500 Private Pension Research File."]
["*/ Fewer than 500 participants."]
["**/ Less than $500,000."]
["- Missing or zero."]
["SOURCE: Form 5500 filings for plan years ending in 2018."]

{"sheet":"60","index":57,"n_rows":40,"n_cols":5,"rows_kept":40,"cut":false,"hidden":false,"merged":[[0,0,0,4],[1,0,1,4],[2,0,2,4]]}
["Table D9. Income Statement of 401(k) Type Plans with 100 or More Participants"]
["by extent of participant direction of investments, 2018"]
["(millions)"]
[]
["Income and Expenses","Total","Participant Directs All Investments","Participant Directs Investment of Portion of Assets","Participant Does Not Direct Any Investments"]
["Income"]
["Contributions Received or Receivable From: "]
["   Employers",124814,112036,10742,2036]
["   Participants",229076,207683,17562,3830]
["   Others (Including Rollovers)",41991,39124,2145,722]
["   Noncash Contributions",491,393,97,"**/"]
["Total Contributions",396372,359236,30547,6589]
["Interest Earnings:"]
["   Interest-Bearing Cash",823,710,88,24]
["   U.S. Government Securities",545,503,32,10]
["   Corporate Debt Instruments",538,456,66,15]
["   Non-Participant Loans",58,49,8,1]
["   Participant Loans",3260,2899,310,51]
["   Other or Unspecified Interest",3101,2250,767,84]
["Total Interest Earnings",8325,6867,1273,185]
["Dividends:"]
["   Preferred Stock",335,153,177,5]
["   Common Stock",5865,4422,1297,146]
["   Registered Investment Company Shares (e.g., Mutual Funds)",80946,74703,4931,1311]
["Total Dividend Income",87146,79278,6406,1462]
["Rents",5,1,4,"**/"]
["Net Gain (Loss) on Sale of Assets",4053,1319,2605,129]
["Unrealized Appreciation (Depreciation):"]
["   Unrealized Appreciation of Real Estate",-364,-251,-100,-13]
["   Other Unrealized Appreciation",-27950,-20389,-7253,-308]
["Total Unrealized Appreciation (Depreciation)",-28314,-20640,-7353,-321]
["Net Investment Gain (Loss) From:"]
["   Common/Collective Trusts",-48213,-41933,-5847,-433]
["   Pooled Separate Accounts",-7256,-6836,-308,-111]
["   Master Trusts",-49610,-39827,-9373,-410]
["   103-12 Investment Entities",-231,-229,6,-8]
["   Registered Investment Companies",-179816,-165983,-10905,-2928]
["Other or Unspecified Income",-4576,-4316,-249,-12]
["Total Income",177886,166938,6806,4142]
[null,null,null,null," (continued...) "]

{"sheet":"61","index":58,"n_rows":32,"n_cols":5,"rows_kept":32,"cut":false,"hidden":false,"merged":[[31,0,31,4],[25,0,25,4],[26,0,26,4],[0,0,0,4],[1,0,1,4],[2,0,2,4],[28,0,28,4],[27,0,27,4]]}
["Table D9. Income Statement of 401(k) Type Plans with 100 or More Participants"]
["by extent of participant direction of investments, 2018"]
["(millions)"]
[]
["Income and Expenses","Total","Participant Directs All Investments","Participant Directs Investment of Portion of Assets","Participant Does Not Direct Any Investments"]
["Expenses"]
["Benefit Payments and Payments to Provide"]
["   Benefits:"]
["   Direct Benefit Payments",384355,335184,42431,6740]
["   Payments to Insurance Carriers for Benefits",63,60,3,"**/"]
["   Other or Unspecified Benefits",4104,3922,96,86]
["Total Benefit Payments",388522,339167,42529,6826]
["Interest Expense",75,7,67,1]
["Corrective Distributions",622,594,22,6]
["Deemed Distribution of Participant Loans",698,652,38,7]
["Administrative Expenses:"]
["   Professional Fees",466,419,33,15]
["   Contract Administrator Fees",1100,1020,63,17]
["   Investment Advisory and Management Fees",1252,1077,141,34]
["   Other or Unspecified Admin. Expenses",1953,1815,106,32]
["Total Administrative Expenses",4772,4331,344,98]
["Unspecified Expenses",27,26,1,1]
["Total Expenses",394717,344776,43002,6938]
[]
["Net Income",-216831,-177838,-36196,-2796]
[]
["NOTES: Some totals do not equal the sum of the components due to rounding. "]
["Pension plan statistics are weighted to estimate the impact of delinquent filers. This may result in non-integer plan counts and associated statistics in the underlying data. For more information on the weighted estimates, refer to the “Weights” section in the User Guide of the Form 5500 Private Pension Research File."]
["*/ Fewer than 500 participants."]
["**/ Less than $500,000."]
["- Missing or zero."]
["SOURCE: Form 5500 filings for plan years ending in 2018."]

{"sheet":"62","index":59,"n_rows":27,"n_cols":8,"rows_kept":27,"cut":false,"hidden":false,"merged":[[26,0,26,7],[23,0,23,6],[24,0,24,6],[0,0,0,7],[1,0,1,7],[2,0,2,7],[22,0,22,7],[14,1,14,7],[4,0,4,1],[5,0,7,0],[8,0,10,0],[11,0,13,0],[16,0,16,7],[19,0,19,7],[20,0,20,7],[18,0,18,7],[17,0,17,7],[21,0,21,7],[15,0,15,7],[25,0,25,6]]}
["Table D10. Number of Employee Stock Ownership Plans (ESOPs), Total"]
["Participants, Active Participants, Assets, Contributions, and Benefits"]
["by type of ESOP, 2018"]
[]
["Type of Plan ",null,"Number of Plans ","Total Participants (thousands) ","Active Participants (thousands) 1","Total Assets (millions) 2","Total Contributions (millions) 3","Total Benefits (millions) 4"]
["Total","Total",6400,14020,10357,1455538,86188,126194]
[null,"Nonleveraged ESOPs",3286,11942,8849,1217006,75198,105671]
[null,"Leveraged ESOPs",3114,2078,1508,238532,10990,20523]
["Stand-Alone ESOPs","Total",5361,1751,1244,153999,5293,12321]
[null,"Nonleveraged ESOPs",2492,904,649,70081,2209,6281]
[null,"Leveraged ESOPs",2869,847,595,83918,3085,6040]
["KSOPs","Total",1039,12269,9113,1301539,80895,113872]
[null,"Nonleveraged ESOPs",794,11038,8200,1146925,72990,99389]
[null,"Leveraged ESOPs",245,1231,913,154614,7906,14483]
[]
["NOTES: KSOPs are defined as ESOPs with a 401(k) plan feature. Stand-Alone ESOPs have no such feature."]
["Excludes \"one-participant plans.\""]
["Some totals do not equal the sum of the components due to rounding. "]
["Pension plan statistics are weighted to estimate the impact of delinquent filers. This may result in non-integer plan counts and associated statistics in the underlying data. For more information on the weighted estimates, refer to the “Weights” section in the User Guide of the Form 5500 Private Pension Research File."]
["1 The definition of active participants includes individuals who are eligible to elect to have the employer make payments to a 401(k) type plan (even if individuals are not contributing) and nonvested individuals who are earning or retaining credited service under the plan. For more information, please see the Instructions for Form 5500 at https://www.dol.gov/agencies/ebsa/employers-and-advisers/plan-administration-and- compliance/reporting-and-filing/form-5500."]
["2 Total asset amounts shown do not include the value of allocated insurance contracts described in 29 C.F.R § 2520.104-44."]
["3 For the purposes of this report, includes both employer and employee contributions."]
["4 Amounts shown include both benefits paid directly to participants and beneficiaries from trust funds and premium payments made by plans to insurance carriers. Amounts exclude benefits paid directly by insurance carriers."]
["*/ Fewer than 500 participants."]
["**/ Less than $500,000."]
["- Missing or zero."]
["SOURCE: Form 5500 filings for plan years ending in 2018."]

{"sheet":"63","index":60,"n_rows":30,"n_cols":10,"rows_kept":30,"cut":false,"hidden":false,"merged":[[29,0,29,9],[3,4,3,6],[3,7,3,9],[0,0,0,9],[1,0,1,9],[20,0,20,3],[3,0,4,0],[3,1,3,3],[21,0,21,9],[28,0,28,9],[22,0,22,9],[26,0,26,6],[27,0,27,6],[23,0,23,9],[24,0,24,9],[25,0,25,9]]}
["Table D11. Number of Employee Stock Ownership Plans (ESOPs)"]
["by number of participants, type of ESOP, and primary or supplemental status, 2018"]
[]
["Total Participants ","Total Plans",null,null,"Stand-Alone ESOPs",null,null,"KSOPs"]
[null,"Total","ESOP is Only Plan Sponsored by Employer","ESOP is One of Multiple Plans Sponsored by Employer","Total","ESOP is Only Plan Sponsored by Employer","ESOP is One of Multiple Plans Sponsored by Employer","Total","ESOP is Only Plan Sponsored by Employer","ESOP is One of Multiple Plans Sponsored by Employer"]
["Total",6400,2076,4324,5361,1408,3953,1039,668,371]
["None or Not Reported",242,125,118,206,98,107,36,26,10]
["2-9",166,116,51,147,100,47,19,15,4]
["10-24",541,250,291,500,218,282,41,31,9]
["25-49",1097,375,723,995,285,709,103,89,13]
["50-99",1390,374,1016,1281,281,1000,110,93,16]
["100-249",1332,374,958,1166,231,935,167,144,23]
["250-499",626,161,465,548,97,451,78,64,14]
["500-999",334,100,234,275,55,220,59,45,13]
["1,000-2,499",225,69,157,151,28,122,75,40,34]
["2,500-4,999",132,54,79,52,10,41,81,43,37]
["5,000-9,999",96,24,72,21,1,20,75,23,52]
["10,000-19,999",85,21,64,15,3,12,70,18,51]
["20,000-49,999",84,25,59,3,"-",3,81,25,56]
["50,000 or More",48,9,39,2,"-",2,46,9,37]
[]
["NOTES: KSOPs are defined as ESOPs with a 401(k) plan feature. Stand-Alone ESOPs have no such feature."]
["Even if the employer sponsors another pension plan(s), not all participants in the ESOP are necessarily covered by or even eligible for coverage under the other pension plans(s)."]
["Excludes \"one-participant plans.\""]
["Some totals do not equal the sum of the components due to rounding. "]
["Pension plan statistics are weighted to estimate the impact of delinquent filers. This may result in non-integer plan counts and associated statistics in the underlying data. For more information on the weighted estimates, refer to the “Weights” section in the User Guide of the Form 5500 Private Pension Research File."]
["*/ Fewer than 500 participants."]
["**/ Less than $500,000."]
["- Missing or zero."]
["SOURCE: Form 5500 filings for plan years ending in 2018."]

{"sheet":"64","index":61,"n_rows":25,"n_cols":10,"rows_kept":25,"cut":false,"hidden":false,"merged":[[5,4,5,6],[5,7,5,9],[0,0,0,9],[1,0,1,9],[2,0,2,9],[3,0,3,9],[5,0,6,0],[5,1,5,3]]}
["Table D12. Balance Sheet of Employee Stock Ownership Plans (ESOPs)"]
["with 100 or More Participants"]
["by type of ESOP and leveraged status, 2018"]
["(millions)"]
[]
["Type of Asset or Liability","Total Plans",null,null,"Stand-Alone ESOPs",null,null,"KSOPs"]
[null,"Total","Nonleveraged ESOPs","Leveraged ESOPs","Total","Nonleveraged ESOPs","Leveraged ESOPs","Total","Nonleveraged ESOPs","Leveraged ESOPs"]
["Assets"]
["Total Noninterest-Bearing Cash",320,180,140,227,98,129,93,81,11]
["Employer Contrib. Receivable",8181,6913,1268,1834,1015,820,6347,5898,449]
["Participant Contrib. Receivable",293,279,14,1,1,"**/",292,278,14]
["Other Receivables",13444,13202,243,267,78,189,13177,13124,54]
["Interest-Bearing Cash",8898,7513,1386,1723,791,932,7175,6722,453]
["U.S. Government Securities",17223,15740,1484,1230,78,1153,15993,15662,331]
["Corporate Debt Instruments: Preferred",2572,2476,96,10,1,9,2562,2475,87]
["Corporate Debt Instruments: All Other",7859,6713,1146,471,67,405,7388,6646,742]
["Preferred Stock",118,89,29,23,2,21,95,87,9]
["Common Stock",36770,35164,1606,1131,576,556,35638,34588,1050]
["Partnership/Joint Venture Interests",167,167,"**/",1,1,"**/",166,166,"**/"]
["Real Estate (Other Than Employer Real Property)",1,1,"-",1,1,"-","-","-","-"]
["Loans (Other Than to Participants)",673,673,"-","**/","**/","-",673,673,"-"]
["Participant Loans",19583,17302,2281,82,12,70,19501,17290,2211]
["Assets in Common/Collective Trusts",340968,290168,50800,2879,972,1907,338089,289196,48893]
["Assets in Pooled Separate Accounts",5796,5371,425,106,27,79,5690,5344,346]
[null,null,null,null,null,null,null,null,null,"(continued...)"]

{"sheet":"65","index":62,"n_rows":35,"n_cols":10,"rows_kept":35,"cut":false,"hidden":false,"merged":[[0,0,0,9],[1,0,1,9],[2,0,2,9],[3,0,3,9],[5,0,6,0],[5,1,5,3],[5,4,5,6],[5,7,5,9],[34,0,34,9],[26,0,26,3],[31,0,31,3],[33,0,33,9],[32,0,32,3],[29,0,29,9],[28,0,28,9],[27,0,27,9],[30,0,30,9]]}
["Table D12. Balance Sheet of Employee Stock Ownership Plans (ESOPs)"]
["with 100 or More Participants"]
["by type of ESOP and leveraged status, 2018"]
["(millions)"]
[]
["Type of Asset or Liability","Total Plans",null,null,"Stand-Alone ESOPs",null,null,"KSOPs"]
[null,"Total","Nonleveraged ESOPs","Leveraged ESOPs","Total","Nonleveraged ESOPs","Leveraged ESOPs","Total","Nonleveraged ESOPs","Leveraged ESOPs"]
["Assets in Master Trusts",504294,466802,37492,1985,1303,682,502308,465499,36810]
["Assets in 103-12 Investment Entities",1844,1715,129,"-","-","-",1844,1715,129]
["Assets in Registered Investment Comp.",165460,146839,18621,2416,1207,1209,163044,145632,17412]
["Assets in Ins. Co. General Accounts",12051,10605,1446,98,71,27,11953,10534,1420]
["Other General Investments",26598,18613,7985,62,50,13,26536,18563,7973]
["Employer Securities",254927,153305,101622,124676,58561,66115,130251,94744,35506]
["Employer Real Property",10,"-",10,10,"-",10,"-","-","-"]
["Buildings and Other Property Used by Plan","-","-","-","-","-","-","-","-","-"]
["Other or Unspecified Assets",433,324,109,222,161,62,211,163,48]
["Total Assets",1428485,1200153,228332,139457,65071,74385,1289028,1135081,153947]
[]
["Liabilities"]
["Benefit Claims Payable",434,326,108,165,64,101,269,262,7]
["Operating Payables",1524,1455,69,74,19,55,1450,1436,13]
["Acquisition Indebtedness",11905,295,11610,11698,279,11419,207,16,191]
["Other Liabilities",11559,2834,8725,6736,225,6511,4822,2609,2214]
["Total Liabilities",25422,4910,20511,18674,587,18086,6748,4323,2425]
[]
["Net Assets",1403063,1195242,207821,120783,64484,56299,1282280,1130758,151522]
[]
["NOTES: KSOPs are defined as ESOPs with a 401(k) plan feature. Stand-Alone ESOPs have no such feature."]
["Total asset amounts shown do not include the value of allocated insurance contracts described in 29 C.F.R § 2520.104-44."]
["Some totals do not equal the sum of the components due to rounding. "]
["Pension plan statistics are weighted to estimate the impact of delinquent filers. This may result in non-integer plan counts and associated statistics in the underlying data. For more information on the weighted estimates, refer to the “Weights” section in the User Guide of the Form 5500 Private Pension Research File."]
["*/ Fewer than 500 participants."]
["**/ Less than $500,000."]
["- Missing or zero."]
["SOURCE: Form 5500 filings for plan years ending in 2018."]

{"sheet":"66","index":63,"n_rows":42,"n_cols":10,"rows_kept":42,"cut":false,"hidden":false,"merged":[[0,0,0,9],[1,0,1,9],[2,0,2,9],[3,0,3,9],[5,0,6,0],[5,1,5,3],[5,4,5,6],[5,7,5,9]]}
["Table D13. Income Statement of Employee Stock Ownership Plans (ESOPs)"]
["with 100 or More Participants"]
["by type of ESOP and leveraged status, 2018"]
["(millions)"]
[]
["Income and Expenses","Total Plans",null,null,"Stand-Alone ESOPs",null,null,"KSOPs"]
[null,"Total","Nonleveraged ESOPs","Leveraged ESOPs","Total","Nonleveraged ESOPs","Leveraged ESOPs","Total","Nonleveraged ESOPs","Leveraged ESOPs"]
["Income"]
["Contributions Received or Receivable From:"]
["   Employers",30830,25929,4901,3625,1214,2411,27204,24715,2489]
["   Participants",47295,42440,4855,90,38,52,47205,42402,4804]
["   Others (Including Rollovers)",5270,4682,588,17,7,10,5252,4674,578]
["   Noncash Contributions",1071,979,92,772,687,84,300,292,8]
["Total Contributions",84466,74030,10436,4504,1947,2558,79962,72083,7878]
["Interest Earnings:"]
["   Interest-Bearing Cash",197,135,61,39,23,17,157,113,45]
["   U.S. Government Securities",312,296,16,7,1,7,305,295,9]
["   Corporate Debt Instruments",300,280,21,10,1,9,291,279,12]
["   Non-Participant Loans",32,32,"**/","**/","-","**/",32,32,"**/"]
["   Participant Loans",881,762,119,3,"**/",3,878,762,116]
["   Other or Unspecified Interest",1411,984,427,235,3,232,1176,981,195]
["Total Interest Earnings",3133,2489,644,295,28,267,2838,2461,377]
["Dividends:"]
["   Preferred Stock",583,95,487,333,6,327,250,89,160]
["   Common Stock",5428,3766,1662,1349,466,882,4079,3300,779]
["   Registered Investment Company Shares (e.g., Mutual Funds)",7548,6504,1043,171,90,81,7376,6414,962]
["Total Dividend Income",13558,10366,3192,1853,562,1291,11705,9804,1902]
["Rents","**/","-","**/","**/","-","**/","-","-","-"]
["Net Gain (Loss) on Sale of Assets",3052,1148,1904,337,92,244,2715,1056,1660]
["Unrealized Appreciation (Depreciation):"]
["   Unrealized Appreciation of Real Estate",18,5,13,176,163,13,-158,-158,"**/"]
["   Other Unrealized Appreciation",-9207,-5696,-3512,8371,5733,2638,-17578,-11429,-6150]
["Total Unrealized Appreciation (Depreciation)",-9189,-5690,-3499,8547,5897,2651,-17737,-11587,-6150]
["Net Investment Gain (Loss) From:"]
["   Common/Collective Trusts",-15495,-12670,-2824,114,-32,147,-15609,-12638,-2971]
["   Pooled Separate Accounts",-686,-666,-20,-1,"**/",-1,-685,-666,-19]
["   Master Trusts",-27667,-24854,-2813,-412,-146,-266,-27255,-24709,-2547]
["   103-12 Investment Entities",-35,-37,2,-22,-22,"-",-13,-15,2]
["   Registered Investment Companies",-16300,-14582,-1717,-112,-73,-39,-16187,-14509,-1678]
["Other or Unspecified Income",-235,-972,737,968,410,558,-1203,-1382,179]
["Total Income",34603,28561,6041,16071,8663,7408,18531,19899,-1367]
[null,null,null,null,null,null,null,null,null,"(continued...)"]

{"sheet":"67","index":64,"n_rows":35,"n_cols":10,"rows_kept":35,"cut":false,"hidden":false,"merged":[[0,0,0,9],[1,0,1,9],[2,0,2,9],[3,0,3,9],[27,0,27,3],[5,0,6,0],[5,1,5,3],[5,4,5,6],[5,7,5,9],[33,0,33,9],[34,0,34,9],[28,0,28,9],[31,0,31,3],[32,0,32,3],[29,0,29,9],[30,0,30,9]]}
["Table D13. Income Statement of Employee Stock Ownership Plans (ESOPs)"]
["with 100 or More Participants"]
["by type of ESOP and leveraged status, 2018"]
["(millions)"]
[]
["Income and Expenses","Total Plans",null,null,"Stand-Alone ESOPs",null,null,"KSOPs"]
[null,"Total","Nonleveraged ESOPs","Leveraged ESOPs","Total","Nonleveraged ESOPs","Leveraged ESOPs","Total","Nonleveraged ESOPs","Leveraged ESOPs"]
["Expenses"]
["Benefit Payments and Payments to Provide "]
["   Benefits:"]
["   Direct Benefit Payments",121274,102122,19152,9625,4799,4826,111649,97322,14327]
["   Payments to Insurance Carriers for Benefits",7,5,2,1,1,"**/",6,4,2]
["   Other or Unspecified Benefits",206,123,83,138,70,68,68,53,15]
["Total Benefit Payments",121487,102250,19237,9765,4870,4894,111722,97379,14343]
["Interest Expense",695,16,679,622,13,609,73,3,70]
["Corrective Distributions",18,14,4,"**/","-","**/",18,14,3]
["Deemed Distrib. of Partic. Loans",114,104,10,"**/","**/","**/",113,103,10]
["Administrative Expenses:"]
["   Professional Fees",116,100,16,14,7,7,102,93,9]
["   Contract Administrator Fees",132,117,16,8,4,3,125,113,12]
["   Investment Advisory and Management Fees",339,314,25,6,3,3,333,311,22]
["   Other or Unspecified Admin. Expenses",198,178,20,8,5,3,189,173,17]
["Total Administrative Expenses",785,709,76,36,20,16,749,689,60]
["Unspecified Expenses",18,1,17,18,1,17,"**/","**/","**/"]
["Total Expenses",123117,103094,20024,10441,4904,5537,112676,98189,14487]
[]
["Net Income",-88515,-74532,-13982,5630,3758,1871,-94144,-78291,-15854]
[]
["NOTES: KSOPs are defined as ESOPs with a 401(k) plan feature. Stand-Alone ESOPs have no such feature."]
["Some totals do not equal the sum of the components due to rounding. "]
["Pension plan statistics are weighted to estimate the impact of delinquent filers. This may result in non-integer plan counts and associated statistics in the underlying data. For more information on the weighted estimates, refer to the “Weights” section in the User Guide of the Form 5500 Private Pension Research File."]
["*/ Fewer than 500 participants."]
["**/ Less than $500,000."]
["- Missing or zero."]
["SOURCE: Form 5500 filings for plan years ending in 2018."]

{"sheet":"68","index":65,"n_rows":22,"n_cols":6,"rows_kept":22,"cut":false,"hidden":false,"merged":[[13,0,13,5],[0,0,0,5],[1,0,1,5],[8,0,8,5],[9,0,9,5],[10,0,10,5],[11,0,11,5],[12,0,12,5],[21,0,21,5],[14,0,14,5],[15,0,15,5],[16,0,16,5],[17,0,17,5],[18,0,18,5]]}
["Table D14. Number of Defined Contribution Plans"]
["by type of plan and select reported benefit codes, 2018"]
[]
["Type of Plan ¹","Number of Plans ","Profit Sharing ²","Stock Bonus ³","Target Benefit ⁴","Money Purchase ⁵"]
["Total Defined Contribution",675007,645807,4020,351,6363]
["401(k) Type",588499,588073,394,77,339]
["403(b) ",20768,3984,4,2,369]
["Other Defined Contribution ",65740,53750,3622,272,5655]
[]
["NOTES: Plans reporting more than one benefit code may be included in more than one column of the table. Also, defined contribution plans that do not report any of the benefit codes associated with Profit Sharing, Stock Bonus, Target Benefit, or Money Purchase plans are only included in the \"Number of Plans\" column. "]
["Excludes \"one-participant plans.\""]
["Some totals do not equal the sum of the components due to rounding. "]
["Pension plan statistics are weighted to estimate the impact of delinquent filers. This may result in non-integer plan counts and associated statistics in the underlying data. For more information on the weighted estimates, refer to the “Weights” section in the User Guide of the Form 5500 Private Pension Research File."]
["1 An annuity arrangement under Code section 403(b)(1) and custodial account arrangement under Code section 403(b)(7) are grouped under the category of 403(b). These numbers may not represent all 403(b) plans because those 403(b) plans that are not established or maintained by an employer as described in DOL Regulation 29 C.F.R § 2510.3-2(f) are exempt from filing a Form 5500/5500-SF. These data include only 403(b) plans that file the Form 5500 or Form 5500-SF. Additional information on 403(b) filing requirements can be found in Field Assistance Bulletins 2009-02 and 2010-01. Approximately 0.05% of individual account plans indicate both 401(k) and 403(b) plan characteristics. For purposes of this report, they are classified as 401(k) type plans."]
["2 Pension benefit feature 2E."]
["3 Pension benefit feature 2I."]
["4 Pension benefit feature 2B."]
["5 Pension benefit feature 2C."]
["*/ Fewer than 500 participants."]
["**/ Less than $500,000."]
["- Missing or zero."]
["SOURCE: Form 5500 filings for plan years ending in 2018."]